{"text_format":"3","workbook":"xlsx","n_sheets":11,"sheets":["Start","Splendor","State","Stacks","Hist","Cards","Decks","Gems","Nobles","Notes","Todo"],"not_rendered":{"macros":1,"defined_names":33},"read":"whole","date_system":"1900"}

{"sheet":"Start","index":0,"n_rows":28,"n_cols":3,"rows_kept":28,"merged":[[4,1,4,2],[27,1,27,4]]}
[]
[]
[]
[]
[null,"Ready to start a new game of Splendor?"]
[]
[]
[null,"Total Number of Players:",2]
[]
[null,"Number of Computer Players:",0]
{"$rows_empty":17}
[null,"This project is dedicated to my dearest Katherine."]

{"sheet":"Splendor","index":1,"n_rows":72,"n_cols":75,"rows_kept":72,"merged":[[7,30,8,32],[7,34,8,37],[7,56,8,59],[8,1,8,2],[8,3,8,4],[8,7,8,8],[8,9,8,10],[8,13,8,14],[8,15,8,16],[8,19,8,20],[8,21,8,22],[8,25,8,26],[8,27,8,28],[16,31,17,31],[16,34,17,34],[16,36,17,36],[16,37,17,37],[16,38,17,38],[16,39,17,39],[16,40,17,40],[16,42,17,42],[16,43,17,43],[16,44,17,44],[16,45,17,45],[16,46,17,46],[16,48,17,48],[16,49,17,49],[16,50,17,50],[16,51,17,51],[16,52,17,52],[16,56,17,56],[16,58,17,58],[16,59,17,59],[16,60,17,60],[16,61,17,61],[16,62,17,62],[16,64,17,64],[16,65,17,65],[16,66,17,66],[16,67,17,67],[16,68,17,68],[16,70,17,70],[16,71,17,71],[16,72,17,72],[16,73,17,73],[16,74,17,74],[18,1,28,5],[19,7,19,8],[19,13,19,14],[19,19,19,20],[19,25,19,26],[21,31,22,31],[21,34,22,34],[21,56,22,56],[29,36,30,36],[29,37,30,37],[29,38,30,38],[29,39,30,39],[29,40,30,40],[29,42,30,42],[29,43,30,43],[29,44,30,46],[29,58,30,58],[29,59,30,59],[29,60,30,60],[29,61,30,61],[29,62,30,62],[29,64,30,64],[29,65,30,65],[29,66,30,68],[31,1,41,5],[32,7,32,8],[32,13,32,14],[32,19,32,20],[32,25,32,26],[42,36,43,36],[42,37,43,37],[42,38,43,38],[42,39,43,39],[42,40,43,40],[42,58,43,58],[42,59,43,59],[42,60,43,60],[42,61,43,61],[42,62,43,62],[44,1,54,5],[45,7,45,8],[45,13,45,14],[45,19,45,20],[45,25,45,26]]}
[]
[{"$nulls":46},{"$f":"OFFSET(tblHist[[#Headers],[Action]],$AS$3,0)","v":"Pending"}]
[{"$nulls":44},{"$f":"ROWS(tblHist[PlayerID])","v":1},{"$f":"OFFSET(tblHist[[#Headers],[PlayerID]],$AS$3,0)","v":"P1"},{"$f":"IF($AU$2=\"Pending\",\"It is your turn\",IF(AU2=\"Reserving\",\"Click the card you want to reserve.\",IF(AU2=\"Purchasing\",\"Click the card you want to purchase.\",\"\")))","v":"It is your turn"}]
[]
[]
[]
[]
[{"$nulls":30},"Bank",{"$nulls":3},"P1",{"$nulls":21},"P2"]
[null,{"$f":"INDEX(tblNobles[Prestige],MATCH(D10,tblNobles[ID],0))","v":3},null,{"$f":"INDEX(tblNobles[Name],MATCH(D10,tblNobles[ID],0))","v":"Charles"},{"$nulls":3},{"$f":"INDEX(tblNobles[Prestige],MATCH(J10,tblNobles[ID],0))","v":3},null,{"$f":"INDEX(tblNobles[Name],MATCH(J10,tblNobles[ID],0))","v":"Suleiman"},{"$nulls":3},{"$f":"INDEX(tblNobles[Prestige],MATCH(P10,tblNobles[ID],0))","v":3},null,{"$f":"INDEX(tblNobles[Name],MATCH(P10,tblNobles[ID],0))","v":"Elisabeth"},{"$nulls":3},{"$f":"INDEX(tblNobles[Prestige],MATCH(V10,tblNobles[ID],0))","v":0},null,{"$f":"INDEX(tblNobles[Name],MATCH(V10,tblNobles[ID],0))","v":0},{"$nulls":3},{"$f":"INDEX(tblNobles[Prestige],MATCH(AB10,tblNobles[ID],0))","v":0},null,{"$f":"INDEX(tblNobles[Name],MATCH(AB10,tblNobles[ID],0))","v":0}]
[{"$nulls":3},{"$f":"IF(State!C3=\"\",INDEX(tblsNobles[sNobles],1),0)","v":7},{"$nulls":5},{"$f":"IF(State!C4=\"\",INDEX(tblsNobles[sNobles],2),0)","v":5},{"$nulls":5},{"$f":"IF(State!C5=\"\",INDEX(tblsNobles[sNobles],3),0)","v":2},{"$nulls":5},{"$f":"IF(State!C6=\"\",INDEX(tblsNobles[sNobles],4),\"\")","v":0},{"$nulls":5},{"$f":"INDEX(tblsNobles[sNobles],5)","v":0}]
[null,null,{"$f":"INDEX(tblNobles[A3],MATCH(D10,tblNobles[ID],0))","v":3},{"$f":"INDEX(tblNobles[C3],MATCH(D10,tblNobles[ID],0))","v":"K"},{"$nulls":4},{"$f":"INDEX(tblNobles[A3],MATCH(J10,tblNobles[ID],0))","v":""},{"$f":"INDEX(tblNobles[C3],MATCH(J10,tblNobles[ID],0))","v":""},{"$nulls":4},{"$f":"INDEX(tblNobles[A3],MATCH(P10,tblNobles[ID],0))","v":3},{"$f":"INDEX(tblNobles[C3],MATCH(P10,tblNobles[ID],0))","v":"K"},{"$nulls":4},{"$f":"INDEX(tblNobles[A3],MATCH(V10,tblNobles[ID],0))","v":0},{"$f":"INDEX(tblNobles[C3],MATCH(V10,tblNobles[ID],0))","v":0},{"$nulls":4},{"$f":"INDEX(tblNobles[A3],MATCH(AB10,tblNobles[ID],0))","v":0},{"$f":"INDEX(tblNobles[C3],MATCH(AB10,tblNobles[ID],0))","v":0},{"$nulls":3},{"$f":"INDEX(INDIRECT(\"tblsTokens[s\"&AE$8&\"]\"),MATCH(AG11,tblsTokens[Gem],0))","v":4},"W",null,{"$f":"INDEX(INDIRECT(\"tblsTokens[s\"&AI$8&\"]\"),MATCH(AJ11,tblsTokens[Gem],0))","v":0},"W","Reservations",{"$nulls":19},{"$f":"INDEX(INDIRECT(\"tblsTokens[s\"&BE$8&\"]\"),MATCH(BF11,tblsTokens[Gem],0))","v":0},"W","Reservations"]
[]
[null,null,{"$f":"INDEX(tblNobles[A2],MATCH(D10,tblNobles[ID],0))","v":3},{"$f":"INDEX(tblNobles[C2],MATCH(D10,tblNobles[ID],0))","v":"R"},{"$nulls":4},{"$f":"INDEX(tblNobles[A2],MATCH(J10,tblNobles[ID],0))","v":4},{"$f":"INDEX(tblNobles[C2],MATCH(J10,tblNobles[ID],0))","v":"G"},{"$nulls":4},{"$f":"INDEX(tblNobles[A2],MATCH(P10,tblNobles[ID],0))","v":3},{"$f":"INDEX(tblNobles[C2],MATCH(P10,tblNobles[ID],0))","v":"U"},{"$nulls":4},{"$f":"INDEX(tblNobles[A2],MATCH(V10,tblNobles[ID],0))","v":0},{"$f":"INDEX(tblNobles[C2],MATCH(V10,tblNobles[ID],0))","v":0},{"$nulls":4},{"$f":"INDEX(tblNobles[A2],MATCH(AB10,tblNobles[ID],0))","v":0},{"$f":"INDEX(tblNobles[C2],MATCH(AB10,tblNobles[ID],0))","v":0},{"$nulls":3},{"$f":"INDEX(INDIRECT(\"tblsTokens[s\"&AE$8&\"]\"),MATCH(AG13,tblsTokens[Gem],0))","v":4},"U",null,{"$f":"INDEX(INDIRECT(\"tblsTokens[s\"&AI$8&\"]\"),MATCH(AJ13,tblsTokens[Gem],0))","v":0},"U",null,{"$f":"INDEX(tblCards[Prestige],MATCH(AM13,tblCards[ID],0))","v":0},{"$f":"INDEX(tblsReservations[resP1],1)","v":"0.0"},null,{"$f":"INDEX(tblCards[Gem],MATCH(AM13,tblCards[ID],0))","v":0},null,null,{"$f":"INDEX(tblCards[Prestige],MATCH(AS13,tblCards[ID],0))","v":0},{"$f":"INDEX(tblsReservations[resP1],2)","v":"0.0"},null,{"$f":"INDEX(tblCards[Gem],MATCH(AS13,tblCards[ID],0))","v":0},null,null,{"$f":"INDEX(tblCards[Prestige],MATCH(AY13,tblCards[ID],0))","v":0},{"$f":"INDEX(tblsReservations[resP1],3)","v":"0.0"},null,{"$f":"INDEX(tblCards[Gem],MATCH(AY13,tblCards[ID],0))","v":0},{"$nulls":3},{"$f":"INDEX(INDIRECT(\"tblsTokens[s\"&BE$8&\"]\"),MATCH(BF13,tblsTokens[Gem],0))","v":0},"U",null,{"$f":"INDEX(tblCards[Prestige],MATCH(BI13,tblCards[ID],0))","v":0},{"$f":"INDEX(tblsReservations[resP2],1)","v":"0.0"},null,{"$f":"INDEX(tblCards[Gem],MATCH(BI13,tblCards[ID],0))","v":0},null,null,{"$f":"INDEX(tblCards[Prestige],MATCH(BO13,tblCards[ID],0))","v":0},{"$f":"INDEX(tblsReservations[resP2],2)","v":"0.0"},null,{"$f":"INDEX(tblCards[Gem],MATCH(BO13,tblCards[ID],0))","v":0},null,null,{"$f":"INDEX(tblCards[Prestige],MATCH(BU13,tblCards[ID],0))","v":0},{"$f":"INDEX(tblsReservations[resP2],3)","v":"0.0"},null,{"$f":"INDEX(tblCards[Gem],MATCH(BU13,tblCards[ID],0))","v":0}]
[]
[null,null,{"$f":"INDEX(tblNobles[A1],MATCH(D10,tblNobles[ID],0))","v":3},{"$f":"INDEX(tblNobles[C1],MATCH(D10,tblNobles[ID],0))","v":"W"},{"$nulls":4},{"$f":"INDEX(tblNobles[A1],MATCH(J10,tblNobles[ID],0))","v":4},{"$f":"INDEX(tblNobles[C1],MATCH(J10,tblNobles[ID],0))","v":"U"},{"$nulls":4},{"$f":"INDEX(tblNobles[A1],MATCH(P10,tblNobles[ID],0))","v":3},{"$f":"INDEX(tblNobles[C1],MATCH(P10,tblNobles[ID],0))","v":"W"},{"$nulls":4},{"$f":"INDEX(tblNobles[A1],MATCH(V10,tblNobles[ID],0))","v":0},{"$f":"INDEX(tblNobles[C1],MATCH(V10,tblNobles[ID],0))","v":0},{"$nulls":4},{"$f":"INDEX(tblNobles[A1],MATCH(AB10,tblNobles[ID],0))","v":0},{"$f":"INDEX(tblNobles[C1],MATCH(AB10,tblNobles[ID],0))","v":0},{"$nulls":3},{"$f":"INDEX(INDIRECT(\"tblsTokens[s\"&AE$8&\"]\"),MATCH(AG15,tblsTokens[Gem],0))","v":4},"G",null,{"$f":"INDEX(INDIRECT(\"tblsTokens[s\"&AI$8&\"]\"),MATCH(AJ15,tblsTokens[Gem],0))","v":0},"G",null,{"$f":"INDEX(tblCards[P4],MATCH(AM13,tblCards[ID],0))","v":0},{"$f":"INDEX(tblCards[G4],MATCH(AM13,tblCards[ID],0))","v":0},{"$nulls":4},{"$f":"INDEX(tblCards[P4],MATCH(AS13,tblCards[ID],0))","v":0},{"$f":"INDEX(tblCards[G4],MATCH(AS13,tblCards[ID],0))","v":0},{"$nulls":4},{"$f":"INDEX(tblCards[P4],MATCH(AY13,tblCards[ID],0))","v":0},{"$f":"INDEX(tblCards[G4],MATCH(AY13,tblCards[ID],0))","v":0},{"$nulls":5},{"$f":"INDEX(INDIRECT(\"tblsTokens[s\"&BE$8&\"]\"),MATCH(BF15,tblsTokens[Gem],0))","v":0},"G",null,{"$f":"INDEX(tblCards[P4],MATCH(BI13,tblCards[ID],0))","v":0},{"$f":"INDEX(tblCards[G4],MATCH(BI13,tblCards[ID],0))","v":0},{"$nulls":4},{"$f":"INDEX(tblCards[P4],MATCH(BO13,tblCards[ID],0))","v":0},{"$f":"INDEX(tblCards[G4],MATCH(BO13,tblCards[ID],0))","v":0},{"$nulls":4},{"$f":"INDEX(tblCards[P4],MATCH(BU13,tblCards[ID],0))","v":0},{"$f":"INDEX(tblCards[G4],MATCH(BU13,tblCards[ID],0))","v":0}]
[]
[{"$nulls":31},{"$f":"INDEX(INDIRECT(\"tblsTokens[s\"&AE$8&\"]\"),MATCH(AG17,tblsTokens[Gem],0))","v":4},"R",null,{"$f":"INDEX(INDIRECT(\"tblsTokens[s\"&AI$8&\"]\"),MATCH(AJ17,tblsTokens[Gem],0))","v":0},"R",null,{"$f":"INDEX(tblCards[P3],MATCH(AM13,tblCards[ID],0))","v":0},{"$f":"INDEX(tblCards[G3],MATCH(AM13,tblCards[ID],0))","v":0},{"$nulls":4},{"$f":"INDEX(tblCards[P3],MATCH(AS13,tblCards[ID],0))","v":0},{"$f":"INDEX(tblCards[G3],MATCH(AS13,tblCards[ID],0))","v":0},{"$nulls":4},{"$f":"INDEX(tblCards[P3],MATCH(AY13,tblCards[ID],0))","v":0},{"$f":"INDEX(tblCards[G3],MATCH(AY13,tblCards[ID],0))","v":0},{"$nulls":5},{"$f":"INDEX(INDIRECT(\"tblsTokens[s\"&BE$8&\"]\"),MATCH(BF17,tblsTokens[Gem],0))","v":0},"R",null,{"$f":"INDEX(tblCards[P3],MATCH(BI13,tblCards[ID],0))","v":0},{"$f":"INDEX(tblCards[G3],MATCH(BI13,tblCards[ID],0))","v":0},{"$nulls":4},{"$f":"INDEX(tblCards[P3],MATCH(BO13,tblCards[ID],0))","v":0},{"$f":"INDEX(tblCards[G3],MATCH(BO13,tblCards[ID],0))","v":0},{"$nulls":4},{"$f":"INDEX(tblCards[P3],MATCH(BU13,tblCards[ID],0))","v":0},{"$f":"INDEX(tblCards[G3],MATCH(BU13,tblCards[ID],0))","v":0}]
[{"$nulls":31},{"$f":"INDEX(INDIRECT(\"tblsTokens[s\"&AE$8&\"]\"),MATCH(AG18,tblsTokens[Gem],0))","v":{"$error":"#N/A"}},null,null,{"$f":"INDEX(INDIRECT(\"tblsTokens[s\"&AI$8&\"]\"),MATCH(AJ18,tblsTokens[Gem],0))","v":{"$error":"#N/A"}},{"$nulls":21},{"$f":"INDEX(INDIRECT(\"tblsTokens[s\"&BE$8&\"]\"),MATCH(BF18,tblsTokens[Gem],0))","v":{"$error":"#N/A"}}]
[null,{"$f":"CHAR(233)&CHAR(233)&CHAR(233)","v":"ééé"}]
[{"$nulls":7},{"$f":"INDEX(tblCards[Prestige],MATCH(J20,tblCards[ID],0))","v":3},null,{"$f":"INDEX(tblsCards[sCards],1)","v":"3.13"},null,{"$f":"INDEX(tblCards[Gem],MATCH(J20,tblCards[ID],0))","v":"G"},null,{"$f":"INDEX(tblCards[Prestige],MATCH(P20,tblCards[ID],0))","v":4},null,{"$f":"INDEX(tblsCards[sCards],2)","v":"3.19"},null,{"$f":"INDEX(tblCards[Gem],MATCH(P20,tblCards[ID],0))","v":"R"},null,{"$f":"INDEX(tblCards[Prestige],MATCH(V20,tblCards[ID],0))","v":4},null,{"$f":"INDEX(tblsCards[sCards],3)","v":"3.11"},null,{"$f":"INDEX(tblCards[Gem],MATCH(V20,tblCards[ID],0))","v":"W"},null,{"$f":"INDEX(tblCards[Prestige],MATCH(AB20,tblCards[ID],0))","v":4},null,{"$f":"INDEX(tblsCards[sCards],4)","v":"3.2"},null,{"$f":"INDEX(tblCards[Gem],MATCH(AB20,tblCards[ID],0))","v":"K"},null,{"$f":"INDEX(INDIRECT(\"tblsTokens[s\"&AE$8&\"]\"),MATCH(AG20,tblsTokens[Gem],0))","v":4},"K",null,{"$f":"INDEX(INDIRECT(\"tblsTokens[s\"&AI$8&\"]\"),MATCH(AJ20,tblsTokens[Gem],0))","v":0},"K",null,{"$f":"INDEX(tblCards[P2],MATCH(AM13,tblCards[ID],0))","v":0},{"$f":"INDEX(tblCards[G2],MATCH(AM13,tblCards[ID],0))","v":0},{"$nulls":4},{"$f":"INDEX(tblCards[P2],MATCH(AS13,tblCards[ID],0))","v":0},{"$f":"INDEX(tblCards[G2],MATCH(AS13,tblCards[ID],0))","v":0},{"$nulls":4},{"$f":"INDEX(tblCards[P2],MATCH(AY13,tblCards[ID],0))","v":0},{"$f":"INDEX(tblCards[G2],MATCH(AY13,tblCards[ID],0))","v":0},{"$nulls":5},{"$f":"INDEX(INDIRECT(\"tblsTokens[s\"&BE$8&\"]\"),MATCH(BF20,tblsTokens[Gem],0))","v":0},"K",null,{"$f":"INDEX(tblCards[P2],MATCH(BI13,tblCards[ID],0))","v":0},{"$f":"INDEX(tblCards[G2],MATCH(BI13,tblCards[ID],0))","v":0},{"$nulls":4},{"$f":"INDEX(tblCards[P2],MATCH(BO13,tblCards[ID],0))","v":0},{"$f":"INDEX(tblCards[G2],MATCH(BO13,tblCards[ID],0))","v":0},{"$nulls":4},{"$f":"INDEX(tblCards[P2],MATCH(BU13,tblCards[ID],0))","v":0},{"$f":"INDEX(tblCards[G2],MATCH(BU13,tblCards[ID],0))","v":0}]
[]
[{"$nulls":8},{"$f":"INDEX(tblCards[P4],MATCH(J20,tblCards[ID],0))","v":3},{"$f":"INDEX(tblCards[G4],MATCH(J20,tblCards[ID],0))","v":"K"},{"$nulls":4},{"$f":"INDEX(tblCards[P4],MATCH(P20,tblCards[ID],0))","v":""},{"$f":"INDEX(tblCards[G4],MATCH(P20,tblCards[ID],0))","v":""},{"$nulls":4},{"$f":"INDEX(tblCards[P4],MATCH(V20,tblCards[ID],0))","v":""},{"$f":"INDEX(tblCards[G4],MATCH(V20,tblCards[ID],0))","v":""},{"$nulls":4},{"$f":"INDEX(tblCards[P4],MATCH(AB20,tblCards[ID],0))","v":""},{"$f":"INDEX(tblCards[G4],MATCH(AB20,tblCards[ID],0))","v":""},{"$nulls":3},{"$f":"INDEX(INDIRECT(\"tblsTokens[s\"&AE$8&\"]\"),MATCH(AG22,tblsTokens[Gem],0))","v":5},"J",null,{"$f":"INDEX(INDIRECT(\"tblsTokens[s\"&AI$8&\"]\"),MATCH(AJ22,tblsTokens[Gem],0))","v":0},"J",null,{"$f":"INDEX(tblCards[P1],MATCH(AM13,tblCards[ID],0))","v":0},{"$f":"INDEX(tblCards[G1],MATCH(AM13,tblCards[ID],0))","v":0},{"$nulls":4},{"$f":"INDEX(tblCards[P1],MATCH(AS13,tblCards[ID],0))","v":0},{"$f":"INDEX(tblCards[G1],MATCH(AS13,tblCards[ID],0))","v":0},{"$nulls":4},{"$f":"INDEX(tblCards[P1],MATCH(AY13,tblCards[ID],0))","v":0},{"$f":"INDEX(tblCards[G1],MATCH(AY13,tblCards[ID],0))","v":0},{"$nulls":5},{"$f":"INDEX(INDIRECT(\"tblsTokens[s\"&BE$8&\"]\"),MATCH(BF22,tblsTokens[Gem],0))","v":0},"J",null,{"$f":"INDEX(tblCards[P1],MATCH(BI13,tblCards[ID],0))","v":0},{"$f":"INDEX(tblCards[G1],MATCH(BI13,tblCards[ID],0))","v":0},{"$nulls":4},{"$f":"INDEX(tblCards[P1],MATCH(BO13,tblCards[ID],0))","v":0},{"$f":"INDEX(tblCards[G1],MATCH(BO13,tblCards[ID],0))","v":0},{"$nulls":4},{"$f":"INDEX(tblCards[P1],MATCH(BU13,tblCards[ID],0))","v":0},{"$f":"INDEX(tblCards[G1],MATCH(BU13,tblCards[ID],0))","v":0}]
[{"$nulls":31},{"$f":"INDEX(INDIRECT(\"tblsTokens[s\"&AE$8&\"]\"),MATCH(AG23,tblsTokens[Gem],0))","v":{"$error":"#N/A"}},null,null,{"$f":"INDEX(INDIRECT(\"tblsTokens[s\"&AI$8&\"]\"),MATCH(AJ23,tblsTokens[Gem],0))","v":{"$error":"#N/A"}},{"$nulls":21},{"$f":"INDEX(INDIRECT(\"tblsTokens[s\"&BE$8&\"]\"),MATCH(BF23,tblsTokens[Gem],0))","v":{"$error":"#N/A"}}]
[{"$nulls":8},{"$f":"INDEX(tblCards[P3],MATCH(J20,tblCards[ID],0))","v":3},{"$f":"INDEX(tblCards[G3],MATCH(J20,tblCards[ID],0))","v":"R"},{"$nulls":4},{"$f":"INDEX(tblCards[P3],MATCH(P20,tblCards[ID],0))","v":3},{"$f":"INDEX(tblCards[G3],MATCH(P20,tblCards[ID],0))","v":"R"},{"$nulls":4},{"$f":"INDEX(tblCards[P3],MATCH(V20,tblCards[ID],0))","v":6},{"$f":"INDEX(tblCards[G3],MATCH(V20,tblCards[ID],0))","v":"K"},{"$nulls":4},{"$f":"INDEX(tblCards[P3],MATCH(AB20,tblCards[ID],0))","v":""},{"$f":"INDEX(tblCards[G3],MATCH(AB20,tblCards[ID],0))","v":""},{"$nulls":8},"Collection",{"$nulls":5},"Nobles",{"$nulls":15},"Collection",{"$nulls":5},"Nobles"]
[{"$nulls":36},1]
[{"$nulls":8},{"$f":"INDEX(tblCards[P2],MATCH(J20,tblCards[ID],0))","v":3},{"$f":"INDEX(tblCards[G2],MATCH(J20,tblCards[ID],0))","v":"U"},{"$nulls":4},{"$f":"INDEX(tblCards[P2],MATCH(P20,tblCards[ID],0))","v":6},{"$f":"INDEX(tblCards[G2],MATCH(P20,tblCards[ID],0))","v":"G"},{"$nulls":4},{"$f":"INDEX(tblCards[P2],MATCH(V20,tblCards[ID],0))","v":3},{"$f":"INDEX(tblCards[G2],MATCH(V20,tblCards[ID],0))","v":"R"},{"$nulls":4},{"$f":"INDEX(tblCards[P2],MATCH(AB20,tblCards[ID],0))","v":""},{"$f":"INDEX(tblCards[G2],MATCH(AB20,tblCards[ID],0))","v":""},{"$nulls":8},1,{"$f":"INDEX(tblCards[Prestige],MATCH(AM26,tblCards[ID],0))","v":0},{"$f":"INDEX(tblStacks[],AK26,MATCH($AI$8,tblStacks[#Headers],0))&\"\"","v":""},null,{"$f":"INDEX(tblCards[Gem],MATCH(AM26,tblCards[ID],0))","v":0},null,{"$f":"IF(State!C3=\"P1\",State!B3,0)","v":0},{"$f":"INDEX(tblNobles[Prestige],MATCH(AQ26,tblNobles[ID],0))","v":0},{"$f":"INDEX(tblNobles[Name],MATCH(AQ26,tblNobles[ID],0))","v":0},{"$nulls":13},1,{"$f":"INDEX(tblCards[Prestige],MATCH(BI26,tblCards[ID],0))","v":0},{"$f":"INDEX(tblStacks[],BG26,MATCH($BE$8,tblStacks[#Headers],0))&\"\"","v":""},null,{"$f":"INDEX(tblCards[Gem],MATCH(BI26,tblCards[ID],0))","v":0},null,{"$f":"IF(State!C3=\"P2\",State!B3,0)","v":0},{"$f":"INDEX(tblNobles[Prestige],MATCH(BM26,tblNobles[ID],0))","v":0},{"$f":"INDEX(tblNobles[Name],MATCH(BM26,tblNobles[ID],0))","v":0}]
[{"$nulls":36},{"$f":"AK25+1","v":2},{"$nulls":21},{"$f":"BG25+1","v":1}]
[{"$nulls":8},{"$f":"INDEX(tblCards[P1],MATCH(J20,tblCards[ID],0))","v":5},{"$f":"INDEX(tblCards[G1],MATCH(J20,tblCards[ID],0))","v":"W"},{"$nulls":4},{"$f":"INDEX(tblCards[P1],MATCH(P20,tblCards[ID],0))","v":3},{"$f":"INDEX(tblCards[G1],MATCH(P20,tblCards[ID],0))","v":"U"},{"$nulls":4},{"$f":"INDEX(tblCards[P1],MATCH(V20,tblCards[ID],0))","v":3},{"$f":"INDEX(tblCards[G1],MATCH(V20,tblCards[ID],0))","v":"W"},{"$nulls":4},{"$f":"INDEX(tblCards[P1],MATCH(AB20,tblCards[ID],0))","v":7},{"$f":"INDEX(tblCards[G1],MATCH(AB20,tblCards[ID],0))","v":"R"},{"$nulls":8},2,{"$f":"INDEX(tblCards[Prestige],MATCH(AM28,tblCards[ID],0))","v":0},{"$f":"INDEX(tblStacks[],AK28,MATCH($AI$8,tblStacks[#Headers],0))&\"\"","v":""},null,{"$f":"INDEX(tblCards[Gem],MATCH(AM28,tblCards[ID],0))","v":0},null,{"$f":"IF(State!C4=\"P1\",State!B4,0)","v":0},{"$f":"INDEX(tblNobles[Prestige],MATCH(AQ28,tblNobles[ID],0))","v":0},{"$f":"INDEX(tblNobles[Name],MATCH(AQ28,tblNobles[ID],0))","v":0},{"$nulls":13},2,{"$f":"INDEX(tblCards[Prestige],MATCH(BI28,tblCards[ID],0))","v":0},{"$f":"INDEX(tblStacks[],BG28,MATCH($BE$8,tblStacks[#Headers],0))&\"\"","v":""},null,{"$f":"INDEX(tblCards[Gem],MATCH(BI28,tblCards[ID],0))","v":0},null,{"$f":"IF(State!C4=\"P2\",State!B4,0)","v":0},{"$f":"INDEX(tblNobles[Prestige],MATCH(BM28,tblNobles[ID],0))","v":0},{"$f":"INDEX(tblNobles[Name],MATCH(BM28,tblNobles[ID],0))","v":0}]
[{"$nulls":36},3,{"$nulls":21},2]
[{"$nulls":36},3,{"$f":"INDEX(tblCards[Prestige],MATCH(TEXT(AM30,\"#0.0\"),tblCards[ID],0))","v":0},{"$f":"INDEX(tblStacks[],AK30,MATCH($AI$8,tblStacks[#Headers],0))&\"\"","v":""},null,{"$f":"INDEX(tblCards[Gem],MATCH(AM30,tblCards[ID],0))","v":0},null,{"$f":"IF(State!C5=\"P1\",State!B5,0)","v":0},{"$f":"INDEX(tblNobles[Prestige],MATCH(AQ30,tblNobles[ID],0))","v":0},{"$f":"INDEX(tblNobles[Name],MATCH(AQ30,tblNobles[ID],0))","v":0},{"$nulls":13},3,{"$f":"INDEX(tblCards[Prestige],MATCH(TEXT(BI30,\"#0.0\"),tblCards[ID],0))","v":0},{"$f":"INDEX(tblStacks[],BG30,MATCH($BE$8,tblStacks[#Headers],0))&\"\"","v":""},null,{"$f":"INDEX(tblCards[Gem],MATCH(BI30,tblCards[ID],0))","v":0},null,{"$f":"IF(State!C5=\"P2\",State!B5,0)","v":0},{"$f":"INDEX(tblNobles[Prestige],MATCH(BM30,tblNobles[ID],0))","v":0},{"$f":"INDEX(tblNobles[Name],MATCH(BM30,tblNobles[ID],0))","v":0}]
[]
[null,{"$f":"CHAR(233)&CHAR(233)","v":"éé"},{"$nulls":34},4,{"$nulls":21},{"$f":"BG30+1","v":4}]
[{"$nulls":7},{"$f":"INDEX(tblCards[Prestige],MATCH(J33,tblCards[ID],0))","v":2},null,{"$f":"INDEX(tblsCards[sCards],5)","v":"2.9"},null,{"$f":"INDEX(tblCards[Gem],MATCH(J33,tblCards[ID],0))","v":"U"},null,{"$f":"INDEX(tblCards[Prestige],MATCH(P33,tblCards[ID],0))","v":3},null,{"$f":"INDEX(tblsCards[sCards],6)","v":"2.24"},null,{"$f":"INDEX(tblCards[Gem],MATCH(P33,tblCards[ID],0))","v":"G"},null,{"$f":"INDEX(tblCards[Prestige],MATCH(V33,tblCards[ID],0))","v":2},null,{"$f":"INDEX(tblsCards[sCards],7)","v":"2.5"},null,{"$f":"INDEX(tblCards[Gem],MATCH(V33,tblCards[ID],0))","v":"K"},null,{"$f":"INDEX(tblCards[Prestige],MATCH(AB33,tblCards[ID],0))","v":3},null,{"$f":"INDEX(tblsCards[sCards],8)","v":"2.30"},null,{"$f":"INDEX(tblCards[Gem],MATCH(AB33,tblCards[ID],0))","v":"R"},{"$nulls":6},{"$f":"AK30+1","v":4},{"$f":"INDEX(tblCards[Prestige],MATCH(AM33,tblCards[ID],0))","v":0},{"$f":"INDEX(tblStacks[],AK33,MATCH($AI$8,tblStacks[#Headers],0))&\"\"","v":""},null,{"$f":"INDEX(tblCards[Gem],MATCH(AM33,tblCards[ID],0))","v":0},null,{"$f":"IF(State!C6=\"P1\",State!B6,0)","v":0},{"$f":"INDEX(tblNobles[Prestige],MATCH(AQ33,tblNobles[ID],0))","v":0},{"$f":"INDEX(tblNobles[Name],MATCH(AQ33,tblNobles[ID],0))","v":0},{"$nulls":13},{"$f":"BG30+1","v":4},{"$f":"INDEX(tblCards[Prestige],MATCH(BI33,tblCards[ID],0))","v":0},{"$f":"INDEX(tblStacks[],BG33,MATCH($BE$8,tblStacks[#Headers],0))&\"\"","v":""},null,{"$f":"INDEX(tblCards[Gem],MATCH(BI33,tblCards[ID],0))","v":0},null,{"$f":"IF(State!C6=\"P2\",State!B6,0)","v":0},{"$f":"INDEX(tblNobles[Prestige],MATCH(BM33,tblNobles[ID],0))","v":0},{"$f":"INDEX(tblNobles[Name],MATCH(BM33,tblNobles[ID],0))","v":0}]
[{"$nulls":36},5,{"$nulls":21},{"$f":"BG32+1","v":5}]
[{"$nulls":8},{"$f":"INDEX(tblCards[P4],MATCH(J33,tblCards[ID],0))","v":""},{"$f":"INDEX(tblCards[G4],MATCH(J33,tblCards[ID],0))","v":""},{"$nulls":4},{"$f":"INDEX(tblCards[P4],MATCH(P33,tblCards[ID],0))","v":""},{"$f":"INDEX(tblCards[G4],MATCH(P33,tblCards[ID],0))","v":""},{"$nulls":4},{"$f":"INDEX(tblCards[P4],MATCH(V33,tblCards[ID],0))","v":""},{"$f":"INDEX(tblCards[G4],MATCH(V33,tblCards[ID],0))","v":""},{"$nulls":4},{"$f":"INDEX(tblCards[P4],MATCH(AB33,tblCards[ID],0))","v":""},{"$f":"INDEX(tblCards[G4],MATCH(AB33,tblCards[ID],0))","v":""},{"$nulls":8},5,{"$f":"INDEX(tblCards[Prestige],MATCH(TEXT(AM35,\"#0.0\"),tblCards[ID],0))","v":0},{"$f":"INDEX(tblStacks[],AK35,MATCH($AI$8,tblStacks[#Headers],0))&\"\"","v":""},null,{"$f":"INDEX(tblCards[Gem],MATCH(AM35,tblCards[ID],0))","v":0},null,{"$f":"IF(State!C7=\"P1\",State!B7,0)","v":0},{"$f":"INDEX(tblNobles[Prestige],MATCH(AQ35,tblNobles[ID],0))","v":0},{"$f":"INDEX(tblNobles[Name],MATCH(AQ35,tblNobles[ID],0))","v":0},{"$nulls":13},5,{"$f":"INDEX(tblCards[Prestige],MATCH(TEXT(BI35,\"#0.0\"),tblCards[ID],0))","v":0},{"$f":"INDEX(tblStacks[],BG35,MATCH($BE$8,tblStacks[#Headers],0))&\"\"","v":""},null,{"$f":"INDEX(tblCards[Gem],MATCH(BI35,tblCards[ID],0))","v":0},null,{"$f":"IF(State!C7=\"P2\",State!B7,0)","v":0},{"$f":"INDEX(tblNobles[Prestige],MATCH(BM35,tblNobles[ID],0))","v":0},{"$f":"INDEX(tblNobles[Name],MATCH(BM35,tblNobles[ID],0))","v":0}]
[{"$nulls":36},6,{"$nulls":21},6]
[{"$nulls":8},{"$f":"INDEX(tblCards[P3],MATCH(J33,tblCards[ID],0))","v":""},{"$f":"INDEX(tblCards[G3],MATCH(J33,tblCards[ID],0))","v":""},{"$nulls":4},{"$f":"INDEX(tblCards[P3],MATCH(P33,tblCards[ID],0))","v":""},{"$f":"INDEX(tblCards[G3],MATCH(P33,tblCards[ID],0))","v":""},{"$nulls":4},{"$f":"INDEX(tblCards[P3],MATCH(V33,tblCards[ID],0))","v":""},{"$f":"INDEX(tblCards[G3],MATCH(V33,tblCards[ID],0))","v":""},{"$nulls":4},{"$f":"INDEX(tblCards[P3],MATCH(AB33,tblCards[ID],0))","v":""},{"$f":"INDEX(tblCards[G3],MATCH(AB33,tblCards[ID],0))","v":""},{"$nulls":8},6,{"$f":"INDEX(tblCards[Prestige],MATCH(AM37,tblCards[ID],0))","v":0},{"$f":"INDEX(tblStacks[],AK37,MATCH($AI$8,tblStacks[#Headers],0))&\"\"","v":""},null,{"$f":"INDEX(tblCards[Gem],MATCH(AM37,tblCards[ID],0))","v":0},{"$nulls":17},6,{"$f":"INDEX(tblCards[Prestige],MATCH(BI37,tblCards[ID],0))","v":0},{"$f":"INDEX(tblStacks[],BG37,MATCH($BE$8,tblStacks[#Headers],0))&\"\"","v":""},null,{"$f":"INDEX(tblCards[Gem],MATCH(BI37,tblCards[ID],0))","v":0}]
[{"$nulls":36},7,{"$nulls":21},7]
[{"$nulls":8},{"$f":"INDEX(tblCards[P2],MATCH(J33,tblCards[ID],0))","v":3},{"$f":"INDEX(tblCards[G2],MATCH(J33,tblCards[ID],0))","v":"U"},{"$nulls":4},{"$f":"INDEX(tblCards[P2],MATCH(P33,tblCards[ID],0))","v":""},{"$f":"INDEX(tblCards[G2],MATCH(P33,tblCards[ID],0))","v":""},{"$nulls":4},{"$f":"INDEX(tblCards[P2],MATCH(V33,tblCards[ID],0))","v":""},{"$f":"INDEX(tblCards[G2],MATCH(V33,tblCards[ID],0))","v":""},{"$nulls":4},{"$f":"INDEX(tblCards[P2],MATCH(AB33,tblCards[ID],0))","v":""},{"$f":"INDEX(tblCards[G2],MATCH(AB33,tblCards[ID],0))","v":""},{"$nulls":8},7,{"$f":"INDEX(tblCards[Prestige],MATCH(AM39,tblCards[ID],0))","v":0},{"$f":"INDEX(tblStacks[],AK39,MATCH($AI$8,tblStacks[#Headers],0))&\"\"","v":""},null,{"$f":"INDEX(tblCards[Gem],MATCH(AM39,tblCards[ID],0))","v":0},{"$nulls":17},7,{"$f":"INDEX(tblCards[Prestige],MATCH(BI39,tblCards[ID],0))","v":0},{"$f":"INDEX(tblStacks[],BG39,MATCH($BE$8,tblStacks[#Headers],0))&\"\"","v":""},null,{"$f":"INDEX(tblCards[Gem],MATCH(BI39,tblCards[ID],0))","v":0}]
[{"$nulls":36},8,{"$nulls":21},8]
[{"$nulls":8},{"$f":"INDEX(tblCards[P1],MATCH(J33,tblCards[ID],0))","v":5},{"$f":"INDEX(tblCards[G1],MATCH(J33,tblCards[ID],0))","v":"W"},{"$nulls":4},{"$f":"INDEX(tblCards[P1],MATCH(P33,tblCards[ID],0))","v":6},{"$f":"INDEX(tblCards[G1],MATCH(P33,tblCards[ID],0))","v":"G"},{"$nulls":4},{"$f":"INDEX(tblCards[P1],MATCH(V33,tblCards[ID],0))","v":5},{"$f":"INDEX(tblCards[G1],MATCH(V33,tblCards[ID],0))","v":"W"},{"$nulls":4},{"$f":"INDEX(tblCards[P1],MATCH(AB33,tblCards[ID],0))","v":6},{"$f":"INDEX(tblCards[G1],MATCH(AB33,tblCards[ID],0))","v":"R"},{"$nulls":8},8,{"$f":"INDEX(tblCards[Prestige],MATCH(AM41,tblCards[ID],0))","v":0},{"$f":"INDEX(tblStacks[],AK41,MATCH($AI$8,tblStacks[#Headers],0))&\"\"","v":""},null,{"$f":"INDEX(tblCards[Gem],MATCH(AM41,tblCards[ID],0))","v":0},{"$nulls":17},8,{"$f":"INDEX(tblCards[Prestige],MATCH(BI41,tblCards[ID],0))","v":0},{"$f":"INDEX(tblStacks[],BG41,MATCH($BE$8,tblStacks[#Headers],0))&\"\"","v":""},null,{"$f":"INDEX(tblCards[Gem],MATCH(BI41,tblCards[ID],0))","v":0}]
[{"$nulls":36},9,{"$nulls":21},9]
[{"$nulls":36},9,{"$f":"INDEX(tblCards[Prestige],MATCH(AM43,tblCards[ID],0))","v":0},{"$f":"INDEX(tblStacks[],AK43,MATCH($AI$8,tblStacks[#Headers],0))&\"\"","v":""},null,{"$f":"INDEX(tblCards[Gem],MATCH(AM43,tblCards[ID],0))","v":0},{"$nulls":17},9,{"$f":"INDEX(tblCards[Prestige],MATCH(BI43,tblCards[ID],0))","v":0},{"$f":"INDEX(tblStacks[],BG43,MATCH($BE$8,tblStacks[#Headers],0))&\"\"","v":""},null,{"$f":"INDEX(tblCards[Gem],MATCH(BI43,tblCards[ID],0))","v":0}]
[]
[null,{"$f":"CHAR(233)","v":"é"},{"$nulls":34},10,{"$nulls":21},{"$f":"BG43+1","v":10}]
[{"$nulls":7},{"$f":"INDEX(tblCards[Prestige],MATCH(J46,tblCards[ID],0))","v":""},null,{"$f":"INDEX(tblsCards[sCards],9)","v":"1.9"},null,{"$f":"INDEX(tblCards[Gem],MATCH(J46,tblCards[ID],0))","v":"U"},null,{"$f":"INDEX(tblCards[Prestige],MATCH(P46,tblCards[ID],0))","v":""},null,{"$f":"INDEX(tblsCards[sCards],10)","v":"1.31"},null,{"$f":"INDEX(tblCards[Gem],MATCH(P46,tblCards[ID],0))","v":"G"},null,{"$f":"INDEX(tblCards[Prestige],MATCH(V46,tblCards[ID],0))","v":""},null,{"$f":"INDEX(tblsCards[sCards],11)","v":"1.30"},null,{"$f":"INDEX(tblCards[Gem],MATCH(V46,tblCards[ID],0))","v":"G"},null,{"$f":"INDEX(tblCards[Prestige],MATCH(AB46,tblCards[ID],0))","v":""},null,{"$f":"INDEX(tblsCards[sCards],12)","v":"1.34"},null,{"$f":"INDEX(tblCards[Gem],MATCH(AB46,tblCards[ID],0))","v":"R"},{"$nulls":6},{"$f":"AK43+1","v":10},{"$f":"INDEX(tblCards[Prestige],MATCH(AM46,tblCards[ID],0))","v":0},{"$f":"INDEX(tblStacks[],AK46,MATCH($AI$8,tblStacks[#Headers],0))&\"\"","v":""},null,{"$f":"INDEX(tblCards[Gem],MATCH(AM46,tblCards[ID],0))","v":0},{"$nulls":17},{"$f":"BG43+1","v":10},{"$f":"INDEX(tblCards[Prestige],MATCH(BI46,tblCards[ID],0))","v":0},{"$f":"INDEX(tblStacks[],BG46,MATCH($BE$8,tblStacks[#Headers],0))&\"\"","v":""},null,{"$f":"INDEX(tblCards[Gem],MATCH(BI46,tblCards[ID],0))","v":0}]
[{"$nulls":36},11,{"$nulls":21},{"$f":"BG45+1","v":11}]
[{"$nulls":8},{"$f":"INDEX(tblCards[P4],MATCH(J46,tblCards[ID],0))","v":1},{"$f":"INDEX(tblCards[G4],MATCH(J46,tblCards[ID],0))","v":"K"},{"$nulls":4},{"$f":"INDEX(tblCards[P4],MATCH(P46,tblCards[ID],0))","v":""},{"$f":"INDEX(tblCards[G4],MATCH(P46,tblCards[ID],0))","v":""},{"$nulls":4},{"$f":"INDEX(tblCards[P4],MATCH(V46,tblCards[ID],0))","v":""},{"$f":"INDEX(tblCards[G4],MATCH(V46,tblCards[ID],0))","v":""},{"$nulls":4},{"$f":"INDEX(tblCards[P4],MATCH(AB46,tblCards[ID],0))","v":1},{"$f":"INDEX(tblCards[G4],MATCH(AB46,tblCards[ID],0))","v":"K"},{"$nulls":8},11,{"$f":"INDEX(tblCards[Prestige],MATCH(AM48,tblCards[ID],0))","v":0},{"$f":"INDEX(tblStacks[],AK48,MATCH($AI$8,tblStacks[#Headers],0))&\"\"","v":""},null,{"$f":"INDEX(tblCards[Gem],MATCH(AM48,tblCards[ID],0))","v":0},{"$nulls":17},11,{"$f":"INDEX(tblCards[Prestige],MATCH(BI48,tblCards[ID],0))","v":0},{"$f":"INDEX(tblStacks[],BG48,MATCH($BE$8,tblStacks[#Headers],0))&\"\"","v":""},null,{"$f":"INDEX(tblCards[Gem],MATCH(BI48,tblCards[ID],0))","v":0}]
[{"$nulls":36},12,{"$nulls":21},12]
[{"$nulls":8},{"$f":"INDEX(tblCards[P3],MATCH(J46,tblCards[ID],0))","v":1},{"$f":"INDEX(tblCards[G3],MATCH(J46,tblCards[ID],0))","v":"R"},{"$nulls":4},{"$f":"INDEX(tblCards[P3],MATCH(P46,tblCards[ID],0))","v":""},{"$f":"INDEX(tblCards[G3],MATCH(P46,tblCards[ID],0))","v":""},{"$nulls":4},{"$f":"INDEX(tblCards[P3],MATCH(V46,tblCards[ID],0))","v":""},{"$f":"INDEX(tblCards[G3],MATCH(V46,tblCards[ID],0))","v":""},{"$nulls":4},{"$f":"INDEX(tblCards[P3],MATCH(AB46,tblCards[ID],0))","v":1},{"$f":"INDEX(tblCards[G3],MATCH(AB46,tblCards[ID],0))","v":"G"},{"$nulls":8},12,{"$f":"INDEX(tblCards[Prestige],MATCH(AM50,tblCards[ID],0))","v":0},{"$f":"INDEX(tblStacks[],AK50,MATCH($AI$8,tblStacks[#Headers],0))&\"\"","v":""},null,{"$f":"INDEX(tblCards[Gem],MATCH(AM50,tblCards[ID],0))","v":0},{"$nulls":17},12,{"$f":"INDEX(tblCards[Prestige],MATCH(BI50,tblCards[ID],0))","v":0},{"$f":"INDEX(tblStacks[],BG50,MATCH($BE$8,tblStacks[#Headers],0))&\"\"","v":""},null,{"$f":"INDEX(tblCards[Gem],MATCH(BI50,tblCards[ID],0))","v":0}]
[{"$nulls":36},13,{"$nulls":21},13]
[{"$nulls":8},{"$f":"INDEX(tblCards[P2],MATCH(J46,tblCards[ID],0))","v":1},{"$f":"INDEX(tblCards[G2],MATCH(J46,tblCards[ID],0))","v":"G"},{"$nulls":4},{"$f":"INDEX(tblCards[P2],MATCH(P46,tblCards[ID],0))","v":""},{"$f":"INDEX(tblCards[G2],MATCH(P46,tblCards[ID],0))","v":""},{"$nulls":4},{"$f":"INDEX(tblCards[P2],MATCH(V46,tblCards[ID],0))","v":2},{"$f":"INDEX(tblCards[G2],MATCH(V46,tblCards[ID],0))","v":"R"},{"$nulls":4},{"$f":"INDEX(tblCards[P2],MATCH(AB46,tblCards[ID],0))","v":1},{"$f":"INDEX(tblCards[G2],MATCH(AB46,tblCards[ID],0))","v":"U"},{"$nulls":8},13,{"$f":"INDEX(tblCards[Prestige],MATCH(AM52,tblCards[ID],0))","v":0},{"$f":"INDEX(tblStacks[],AK52,MATCH($AI$8,tblStacks[#Headers],0))&\"\"","v":""},null,{"$f":"INDEX(tblCards[Gem],MATCH(AM52,tblCards[ID],0))","v":0},{"$nulls":17},13,{"$f":"INDEX(tblCards[Prestige],MATCH(BI52,tblCards[ID],0))","v":0},{"$f":"INDEX(tblStacks[],BG52,MATCH($BE$8,tblStacks[#Headers],0))&\"\"","v":""},null,{"$f":"INDEX(tblCards[Gem],MATCH(BI52,tblCards[ID],0))","v":0}]
[{"$nulls":36},14,{"$nulls":21},14]
[{"$nulls":8},{"$f":"INDEX(tblCards[P1],MATCH(J46,tblCards[ID],0))","v":1},{"$f":"INDEX(tblCards[G1],MATCH(J46,tblCards[ID],0))","v":"W"},{"$nulls":4},{"$f":"INDEX(tblCards[P1],MATCH(P46,tblCards[ID],0))","v":3},{"$f":"INDEX(tblCards[G1],MATCH(P46,tblCards[ID],0))","v":"R"},{"$nulls":4},{"$f":"INDEX(tblCards[P1],MATCH(V46,tblCards[ID],0))","v":2},{"$f":"INDEX(tblCards[G1],MATCH(V46,tblCards[ID],0))","v":"U"},{"$nulls":4},{"$f":"INDEX(tblCards[P1],MATCH(AB46,tblCards[ID],0))","v":2},{"$f":"INDEX(tblCards[G1],MATCH(AB46,tblCards[ID],0))","v":"W"},{"$nulls":8},14,{"$f":"INDEX(tblCards[Prestige],MATCH(AM54,tblCards[ID],0))","v":0},{"$f":"INDEX(tblStacks[],AK54,MATCH($AI$8,tblStacks[#Headers],0))&\"\"","v":""},null,{"$f":"INDEX(tblCards[Gem],MATCH(AM54,tblCards[ID],0))","v":0},{"$nulls":17},14,{"$f":"INDEX(tblCards[Prestige],MATCH(BI54,tblCards[ID],0))","v":0},{"$f":"INDEX(tblStacks[],BG54,MATCH($BE$8,tblStacks[#Headers],0))&\"\"","v":""},null,{"$f":"INDEX(tblCards[Gem],MATCH(BI54,tblCards[ID],0))","v":0}]
[{"$nulls":36},15,{"$nulls":21},15]
[{"$nulls":36},15,{"$f":"INDEX(tblCards[Prestige],MATCH(AM56,tblCards[ID],0))","v":0},{"$f":"INDEX(tblStacks[],AK56,MATCH($AI$8,tblStacks[#Headers],0))&\"\"","v":""},null,{"$f":"INDEX(tblCards[Gem],MATCH(AM56,tblCards[ID],0))","v":0},{"$nulls":17},15,{"$f":"INDEX(tblCards[Prestige],MATCH(BI56,tblCards[ID],0))","v":0},{"$f":"INDEX(tblStacks[],BG56,MATCH($BE$8,tblStacks[#Headers],0))&\"\"","v":""},null,{"$f":"INDEX(tblCards[Gem],MATCH(BI56,tblCards[ID],0))","v":0}]
[{"$nulls":36},16,{"$nulls":21},16]
[{"$nulls":36},16,{"$f":"INDEX(tblCards[Prestige],MATCH(AM58,tblCards[ID],0))","v":0},{"$f":"INDEX(tblStacks[],AK58,MATCH($AI$8,tblStacks[#Headers],0))&\"\"","v":""},null,{"$f":"INDEX(tblCards[Gem],MATCH(AM58,tblCards[ID],0))","v":0},{"$nulls":17},16,{"$f":"INDEX(tblCards[Prestige],MATCH(BI58,tblCards[ID],0))","v":0},{"$f":"INDEX(tblStacks[],BG58,MATCH($BE$8,tblStacks[#Headers],0))&\"\"","v":""},null,{"$f":"INDEX(tblCards[Gem],MATCH(BI58,tblCards[ID],0))","v":0}]
[{"$nulls":36},17,{"$nulls":21},17]
[{"$nulls":36},17,{"$f":"INDEX(tblCards[Prestige],MATCH(AM60,tblCards[ID],0))","v":0},{"$f":"INDEX(tblStacks[],AK60,MATCH($AI$8,tblStacks[#Headers],0))&\"\"","v":""},null,{"$f":"INDEX(tblCards[Gem],MATCH(AM60,tblCards[ID],0))","v":0},{"$nulls":17},17,{"$f":"INDEX(tblCards[Prestige],MATCH(BI60,tblCards[ID],0))","v":0},{"$f":"INDEX(tblStacks[],BG60,MATCH($BE$8,tblStacks[#Headers],0))&\"\"","v":""},null,{"$f":"INDEX(tblCards[Gem],MATCH(BI60,tblCards[ID],0))","v":0}]
[{"$nulls":36},18,{"$nulls":21},18]
[{"$nulls":36},18,{"$f":"INDEX(tblCards[Prestige],MATCH(AM62,tblCards[ID],0))","v":0},{"$f":"INDEX(tblStacks[],AK62,MATCH($AI$8,tblStacks[#Headers],0))&\"\"","v":""},null,{"$f":"INDEX(tblCards[Gem],MATCH(AM62,tblCards[ID],0))","v":0},{"$nulls":17},18,{"$f":"INDEX(tblCards[Prestige],MATCH(BI62,tblCards[ID],0))","v":0},{"$f":"INDEX(tblStacks[],BG62,MATCH($BE$8,tblStacks[#Headers],0))&\"\"","v":""},null,{"$f":"INDEX(tblCards[Gem],MATCH(BI62,tblCards[ID],0))","v":0}]
[{"$nulls":36},19,{"$nulls":21},19]
[{"$nulls":36},19,{"$f":"INDEX(tblCards[Prestige],MATCH(AM64,tblCards[ID],0))","v":0},{"$f":"INDEX(tblStacks[],AK64,MATCH($AI$8,tblStacks[#Headers],0))&\"\"","v":""},null,{"$f":"INDEX(tblCards[Gem],MATCH(AM64,tblCards[ID],0))","v":0},{"$nulls":17},19,{"$f":"INDEX(tblCards[Prestige],MATCH(BI64,tblCards[ID],0))","v":0},{"$f":"INDEX(tblStacks[],BG64,MATCH($BE$8,tblStacks[#Headers],0))&\"\"","v":""},null,{"$f":"INDEX(tblCards[Gem],MATCH(BI64,tblCards[ID],0))","v":0}]
[{"$nulls":36},20,{"$nulls":21},20]
[{"$nulls":36},20,{"$f":"INDEX(tblCards[Prestige],MATCH(AM66,tblCards[ID],0))","v":0},{"$f":"INDEX(tblStacks[],AK66,MATCH($AI$8,tblStacks[#Headers],0))&\"\"","v":""},null,{"$f":"INDEX(tblCards[Gem],MATCH(AM66,tblCards[ID],0))","v":0},{"$nulls":17},20,{"$f":"INDEX(tblCards[Prestige],MATCH(BI66,tblCards[ID],0))","v":0},{"$f":"INDEX(tblStacks[],BG66,MATCH($BE$8,tblStacks[#Headers],0))&\"\"","v":""},null,{"$f":"INDEX(tblCards[Gem],MATCH(BI66,tblCards[ID],0))","v":0}]
[{"$nulls":36},21,{"$nulls":21},21]
[{"$nulls":36},21,{"$f":"INDEX(tblCards[Prestige],MATCH(AM68,tblCards[ID],0))","v":0},{"$f":"INDEX(tblStacks[],AK68,MATCH($AI$8,tblStacks[#Headers],0))&\"\"","v":""},null,{"$f":"INDEX(tblCards[Gem],MATCH(AM68,tblCards[ID],0))","v":0},{"$nulls":17},21,{"$f":"INDEX(tblCards[Prestige],MATCH(BI68,tblCards[ID],0))","v":0},{"$f":"INDEX(tblStacks[],BG68,MATCH($BE$8,tblStacks[#Headers],0))&\"\"","v":""},null,{"$f":"INDEX(tblCards[Gem],MATCH(BI68,tblCards[ID],0))","v":0}]
[{"$nulls":36},22,{"$nulls":21},22]
[{"$nulls":36},22,{"$f":"INDEX(tblCards[Prestige],MATCH(AM70,tblCards[ID],0))","v":0},{"$f":"INDEX(tblStacks[],AK70,MATCH($AI$8,tblStacks[#Headers],0))&\"\"","v":""},null,{"$f":"INDEX(tblCards[Gem],MATCH(AM70,tblCards[ID],0))","v":0},{"$nulls":17},22,{"$f":"INDEX(tblCards[Prestige],MATCH(BI70,tblCards[ID],0))","v":0},{"$f":"INDEX(tblStacks[],BG70,MATCH($BE$8,tblStacks[#Headers],0))&\"\"","v":""},null,{"$f":"INDEX(tblCards[Gem],MATCH(BI70,tblCards[ID],0))","v":0}]
[{"$nulls":36},23,{"$nulls":21},23]
[{"$nulls":36},23,{"$f":"INDEX(tblCards[Prestige],MATCH(AM72,tblCards[ID],0))","v":0},{"$f":"INDEX(tblStacks[],AK72,MATCH($AI$8,tblStacks[#Headers],0))&\"\"","v":""},null,{"$f":"INDEX(tblCards[Gem],MATCH(AM72,tblCards[ID],0))","v":0},{"$nulls":17},23,{"$f":"INDEX(tblCards[Prestige],MATCH(BI72,tblCards[ID],0))","v":0},{"$f":"INDEX(tblStacks[],BG72,MATCH($BE$8,tblStacks[#Headers],0))&\"\"","v":""},null,{"$f":"INDEX(tblCards[Gem],MATCH(BI72,tblCards[ID],0))","v":0}]

{"sheet":"State","index":2,"n_rows":63,"n_cols":27,"rows_kept":63,"merged":[[0,16,0,20],[0,23,0,26],[27,1,27,4],[27,7,27,10]]}
[{"$nulls":16},"Collection",{"$nulls":6},"Prestige"]
[null,"sNobles","sBelongsTo","sNobPrestige",null,"sCards",null,"Gem","sBank","sP1","sP2","sP3","sP4",{"$nulls":3},"Total","P1","P2","P3","P4",null,null,"P1","P2","P3","P4"]
[null,7,null,{"$f":"INDEX(tblNobles[Prestige],MATCH(tblsNobles[[#This Row],[sNobles]],tblNobles[ID],0))","v":3},null,"3.13",null,"W",4,0,0,0,0,{"$nulls":3},"W",{"$f":"COUNTIF(tblsCollections[gP1],$Q3)","v":0},{"$f":"COUNTIF(tblsCollections[gP2],$Q3)","v":0},{"$f":"COUNTIF(tblsCollections[gP3],$Q3)","v":0},{"$f":"COUNTIF(tblsCollections[gP4],$Q3)","v":0},null,null,{"$f":"SUM(tblsCollections[pP1])+SUMIF(tblsNobles[sBelongsTo],X2,tblsNobles[sNobPrestige])","v":0},{"$f":"SUM(tblsCollections[pP2])+SUMIF(tblsNobles[sBelongsTo],Y2,tblsNobles[sNobPrestige])","v":0},{"$f":"SUM(tblsCollections[pP3])+SUMIF(tblsNobles[sBelongsTo],Z2,tblsNobles[sNobPrestige])","v":0},{"$f":"SUM(tblsCollections[pP4])+SUMIF(tblsNobles[sBelongsTo],AA2,tblsNobles[sNobPrestige])","v":0}]
[null,5,null,{"$f":"INDEX(tblNobles[Prestige],MATCH(tblsNobles[[#This Row],[sNobles]],tblNobles[ID],0))","v":3},null,"3.19",null,"U",4,0,0,0,0,{"$nulls":3},"U",{"$f":"COUNTIF(tblsCollections[gP1],$Q4)","v":0},{"$f":"COUNTIF(tblsCollections[gP2],$Q4)","v":0},{"$f":"COUNTIF(tblsCollections[gP3],$Q4)","v":0},{"$f":"COUNTIF(tblsCollections[gP4],$Q4)","v":0}]
[null,2,null,{"$f":"INDEX(tblNobles[Prestige],MATCH(tblsNobles[[#This Row],[sNobles]],tblNobles[ID],0))","v":3},null,"3.11",null,"G",4,0,0,0,0,{"$nulls":3},"G",{"$f":"COUNTIF(tblsCollections[gP1],$Q5)","v":0},{"$f":"COUNTIF(tblsCollections[gP2],$Q5)","v":0},{"$f":"COUNTIF(tblsCollections[gP3],$Q5)","v":0},{"$f":"COUNTIF(tblsCollections[gP4],$Q5)","v":0}]
[null,0,null,{"$f":"INDEX(tblNobles[Prestige],MATCH(tblsNobles[[#This Row],[sNobles]],tblNobles[ID],0))","v":0},null,"3.2",null,"R",4,0,0,0,0,{"$nulls":3},"R",{"$f":"COUNTIF(tblsCollections[gP1],$Q6)","v":0},{"$f":"COUNTIF(tblsCollections[gP2],$Q6)","v":0},{"$f":"COUNTIF(tblsCollections[gP3],$Q6)","v":0},{"$f":"COUNTIF(tblsCollections[gP4],$Q6)","v":0}]
[null,0,null,{"$f":"INDEX(tblNobles[Prestige],MATCH(tblsNobles[[#This Row],[sNobles]],tblNobles[ID],0))","v":0},null,"2.9",null,"K",4,0,0,0,0,{"$nulls":3},"K",{"$f":"COUNTIF(tblsCollections[gP1],$Q7)","v":0},{"$f":"COUNTIF(tblsCollections[gP2],$Q7)","v":0},{"$f":"COUNTIF(tblsCollections[gP3],$Q7)","v":0},{"$f":"COUNTIF(tblsCollections[gP4],$Q7)","v":0}]
[{"$nulls":5},"2.24",null,"J",5,0,0,0,0,{"$nulls":3},"Prestige",{"$f":"SUM(tblsCollections[pP1])","v":0},{"$f":"SUM(tblsCollections[pP2])","v":0},{"$f":"SUM(tblsCollections[pP3])","v":0},{"$f":"SUM(tblsCollections[pP4])","v":0}]
[{"$nulls":5},"2.5",null,"Total",{"$f":"SUBTOTAL(109,[sBank])","v":25},{"$f":"SUBTOTAL(109,[sP1])","v":0},{"$f":"SUBTOTAL(109,[sP2])","v":0},{"$f":"SUBTOTAL(109,[sP3])","v":0},{"$f":"SUBTOTAL(109,[sP4])","v":0}]
[{"$nulls":5},"2.30"]
[{"$nulls":5},"1.9"]
[{"$nulls":5},"1.31"]
[{"$nulls":5},"1.30",{"$nulls":7},"cP1","cP2","cP3","cP4","gP1","gP2","gP3","gP4","pP1","pP2","pP3","pP4"]
[{"$nulls":5},"1.34",{"$nulls":11},{"$f":"INDEX(tblCards[Gem],MATCH(tblsCollections[[#This Row],[cP1]],tblCards[ID],0))","v":{"$error":"#N/A"}},{"$f":"INDEX(tblCards[Gem],MATCH(tblsCollections[[#This Row],[cP2]],tblCards[ID],0))","v":{"$error":"#N/A"}},{"$f":"INDEX(tblCards[Gem],MATCH(tblsCollections[[#This Row],[cP3]],tblCards[ID],0))","v":{"$error":"#N/A"}},{"$f":"INDEX(tblCards[Gem],MATCH(tblsCollections[[#This Row],[cP4]],tblCards[ID],0))","v":{"$error":"#N/A"}},{"$f":"_xlfn.IFNA(INDEX(tblCards[Prestige],MATCH(tblsCollections[[#This Row],[cP1]],tblCards[ID],0)),0)","v":0},{"$f":"_xlfn.IFNA(INDEX(tblCards[Prestige],MATCH(tblsCollections[[#This Row],[cP2]],tblCards[ID],0)),0)","v":0},{"$f":"_xlfn.IFNA(INDEX(tblCards[Prestige],MATCH(tblsCollections[[#This Row],[cP3]],tblCards[ID],0)),0)","v":0},{"$f":"_xlfn.IFNA(INDEX(tblCards[Prestige],MATCH(tblsCollections[[#This Row],[cP4]],tblCards[ID],0)),0)","v":0}]
[{"$nulls":9},"Can Buy?",{"$f":"COUNTIF(K19:K23,TRUE)=5","v":false},{"$nulls":6},{"$f":"INDEX(tblCards[Gem],MATCH(tblsCollections[[#This Row],[cP1]],tblCards[ID],0))","v":{"$error":"#N/A"}},{"$f":"INDEX(tblCards[Gem],MATCH(tblsCollections[[#This Row],[cP2]],tblCards[ID],0))","v":{"$error":"#N/A"}},{"$f":"INDEX(tblCards[Gem],MATCH(tblsCollections[[#This Row],[cP3]],tblCards[ID],0))","v":{"$error":"#N/A"}},{"$f":"INDEX(tblCards[Gem],MATCH(tblsCollections[[#This Row],[cP4]],tblCards[ID],0))","v":{"$error":"#N/A"}},{"$f":"_xlfn.IFNA(INDEX(tblCards[Prestige],MATCH(tblsCollections[[#This Row],[cP1]],tblCards[ID],0)),0)","v":0},{"$f":"_xlfn.IFNA(INDEX(tblCards[Prestige],MATCH(tblsCollections[[#This Row],[cP2]],tblCards[ID],0)),0)","v":0},{"$f":"_xlfn.IFNA(INDEX(tblCards[Prestige],MATCH(tblsCollections[[#This Row],[cP3]],tblCards[ID],0)),0)","v":0},{"$f":"_xlfn.IFNA(INDEX(tblCards[Prestige],MATCH(tblsCollections[[#This Row],[cP4]],tblCards[ID],0)),0)","v":0}]
[{"$nulls":8},"Card","Player",{"$nulls":7},{"$f":"INDEX(tblCards[Gem],MATCH(tblsCollections[[#This Row],[cP1]],tblCards[ID],0))","v":{"$error":"#N/A"}},{"$f":"INDEX(tblCards[Gem],MATCH(tblsCollections[[#This Row],[cP2]],tblCards[ID],0))","v":{"$error":"#N/A"}},{"$f":"INDEX(tblCards[Gem],MATCH(tblsCollections[[#This Row],[cP3]],tblCards[ID],0))","v":{"$error":"#N/A"}},{"$f":"INDEX(tblCards[Gem],MATCH(tblsCollections[[#This Row],[cP4]],tblCards[ID],0))","v":{"$error":"#N/A"}},{"$f":"_xlfn.IFNA(INDEX(tblCards[Prestige],MATCH(tblsCollections[[#This Row],[cP1]],tblCards[ID],0)),0)","v":0},{"$f":"_xlfn.IFNA(INDEX(tblCards[Prestige],MATCH(tblsCollections[[#This Row],[cP2]],tblCards[ID],0)),0)","v":0},{"$f":"_xlfn.IFNA(INDEX(tblCards[Prestige],MATCH(tblsCollections[[#This Row],[cP3]],tblCards[ID],0)),0)","v":0},{"$f":"_xlfn.IFNA(INDEX(tblCards[Prestige],MATCH(tblsCollections[[#This Row],[cP4]],tblCards[ID],0)),0)","v":0}]
[{"$nulls":8},"1.10","P1",{"$nulls":7},{"$f":"INDEX(tblCards[Gem],MATCH(tblsCollections[[#This Row],[cP1]],tblCards[ID],0))","v":{"$error":"#N/A"}},{"$f":"INDEX(tblCards[Gem],MATCH(tblsCollections[[#This Row],[cP2]],tblCards[ID],0))","v":{"$error":"#N/A"}},{"$f":"INDEX(tblCards[Gem],MATCH(tblsCollections[[#This Row],[cP3]],tblCards[ID],0))","v":{"$error":"#N/A"}},{"$f":"INDEX(tblCards[Gem],MATCH(tblsCollections[[#This Row],[cP4]],tblCards[ID],0))","v":{"$error":"#N/A"}},{"$f":"_xlfn.IFNA(INDEX(tblCards[Prestige],MATCH(tblsCollections[[#This Row],[cP1]],tblCards[ID],0)),0)","v":0},{"$f":"_xlfn.IFNA(INDEX(tblCards[Prestige],MATCH(tblsCollections[[#This Row],[cP2]],tblCards[ID],0)),0)","v":0},{"$f":"_xlfn.IFNA(INDEX(tblCards[Prestige],MATCH(tblsCollections[[#This Row],[cP3]],tblCards[ID],0)),0)","v":0},{"$f":"_xlfn.IFNA(INDEX(tblCards[Prestige],MATCH(tblsCollections[[#This Row],[cP4]],tblCards[ID],0)),0)","v":0}]
[null,"Power","P1","P2","P3","P4",null,"Gem","Price","Power","Can","JRem",{"$nulls":5},{"$f":"INDEX(tblCards[Gem],MATCH(tblsCollections[[#This Row],[cP1]],tblCards[ID],0))","v":{"$error":"#N/A"}},{"$f":"INDEX(tblCards[Gem],MATCH(tblsCollections[[#This Row],[cP2]],tblCards[ID],0))","v":{"$error":"#N/A"}},{"$f":"INDEX(tblCards[Gem],MATCH(tblsCollections[[#This Row],[cP3]],tblCards[ID],0))","v":{"$error":"#N/A"}},{"$f":"INDEX(tblCards[Gem],MATCH(tblsCollections[[#This Row],[cP4]],tblCards[ID],0))","v":{"$error":"#N/A"}},{"$f":"_xlfn.IFNA(INDEX(tblCards[Prestige],MATCH(tblsCollections[[#This Row],[cP1]],tblCards[ID],0)),0)","v":0},{"$f":"_xlfn.IFNA(INDEX(tblCards[Prestige],MATCH(tblsCollections[[#This Row],[cP2]],tblCards[ID],0)),0)","v":0},{"$f":"_xlfn.IFNA(INDEX(tblCards[Prestige],MATCH(tblsCollections[[#This Row],[cP3]],tblCards[ID],0)),0)","v":0},{"$f":"_xlfn.IFNA(INDEX(tblCards[Prestige],MATCH(tblsCollections[[#This Row],[cP4]],tblCards[ID],0)),0)","v":0}]
[null,"W",{"$f":"J3+R3","v":0},0,0,0,null,{"$f":"B19","v":"W"},{"$f":"INDEX(INDIRECT(\"tblCards[p\"&H19&\"]\"),MATCH($I$17,tblCards[ID],0))","v":1},{"$f":"INDEX(C19:F19,1,MATCH($J$17,$C$18:$F$18,0))","v":0},{"$f":"J19+J24>=I19","v":false},{"$f":"MAX(J24-MAX(I19-J19,0),0)","v":0},{"$nulls":5},{"$f":"INDEX(tblCards[Gem],MATCH(tblsCollections[[#This Row],[cP1]],tblCards[ID],0))","v":{"$error":"#N/A"}},{"$f":"INDEX(tblCards[Gem],MATCH(tblsCollections[[#This Row],[cP2]],tblCards[ID],0))","v":{"$error":"#N/A"}},{"$f":"INDEX(tblCards[Gem],MATCH(tblsCollections[[#This Row],[cP3]],tblCards[ID],0))","v":{"$error":"#N/A"}},{"$f":"INDEX(tblCards[Gem],MATCH(tblsCollections[[#This Row],[cP4]],tblCards[ID],0))","v":{"$error":"#N/A"}},{"$f":"_xlfn.IFNA(INDEX(tblCards[Prestige],MATCH(tblsCollections[[#This Row],[cP1]],tblCards[ID],0)),0)","v":0},{"$f":"_xlfn.IFNA(INDEX(tblCards[Prestige],MATCH(tblsCollections[[#This Row],[cP2]],tblCards[ID],0)),0)","v":0},{"$f":"_xlfn.IFNA(INDEX(tblCards[Prestige],MATCH(tblsCollections[[#This Row],[cP3]],tblCards[ID],0)),0)","v":0},{"$f":"_xlfn.IFNA(INDEX(tblCards[Prestige],MATCH(tblsCollections[[#This Row],[cP4]],tblCards[ID],0)),0)","v":0}]
[null,"U",0,0,0,0,null,{"$f":"B20","v":"U"},{"$f":"INDEX(INDIRECT(\"tblCards[p\"&H20&\"]\"),MATCH($I$17,tblCards[ID],0))","v":0},{"$f":"INDEX(C20:F20,1,MATCH($J$17,$C$18:$F$18,0))","v":0},{"$f":"J20+L19>=I20","v":true},{"$f":"MAX(L19-MAX(I20-J20,0),0)","v":0},{"$nulls":5},{"$f":"INDEX(tblCards[Gem],MATCH(tblsCollections[[#This Row],[cP1]],tblCards[ID],0))","v":{"$error":"#N/A"}},{"$f":"INDEX(tblCards[Gem],MATCH(tblsCollections[[#This Row],[cP2]],tblCards[ID],0))","v":{"$error":"#N/A"}},{"$f":"INDEX(tblCards[Gem],MATCH(tblsCollections[[#This Row],[cP3]],tblCards[ID],0))","v":{"$error":"#N/A"}},{"$f":"INDEX(tblCards[Gem],MATCH(tblsCollections[[#This Row],[cP4]],tblCards[ID],0))","v":{"$error":"#N/A"}},{"$f":"_xlfn.IFNA(INDEX(tblCards[Prestige],MATCH(tblsCollections[[#This Row],[cP1]],tblCards[ID],0)),0)","v":0},{"$f":"_xlfn.IFNA(INDEX(tblCards[Prestige],MATCH(tblsCollections[[#This Row],[cP2]],tblCards[ID],0)),0)","v":0},{"$f":"_xlfn.IFNA(INDEX(tblCards[Prestige],MATCH(tblsCollections[[#This Row],[cP3]],tblCards[ID],0)),0)","v":0},{"$f":"_xlfn.IFNA(INDEX(tblCards[Prestige],MATCH(tblsCollections[[#This Row],[cP4]],tblCards[ID],0)),0)","v":0}]
[null,"G",0,0,0,0,null,"G",{"$f":"INDEX(INDIRECT(\"tblCards[p\"&H21&\"]\"),MATCH($I$17,tblCards[ID],0))","v":1},0,{"$f":"J21+L20>=I21","v":false},{"$f":"MAX(L20-MAX(I21-J21,0),0)","v":0},{"$nulls":5},{"$f":"INDEX(tblCards[Gem],MATCH(tblsCollections[[#This Row],[cP1]],tblCards[ID],0))","v":{"$error":"#N/A"}},{"$f":"INDEX(tblCards[Gem],MATCH(tblsCollections[[#This Row],[cP2]],tblCards[ID],0))","v":{"$error":"#N/A"}},{"$f":"INDEX(tblCards[Gem],MATCH(tblsCollections[[#This Row],[cP3]],tblCards[ID],0))","v":{"$error":"#N/A"}},{"$f":"INDEX(tblCards[Gem],MATCH(tblsCollections[[#This Row],[cP4]],tblCards[ID],0))","v":{"$error":"#N/A"}},{"$f":"_xlfn.IFNA(INDEX(tblCards[Prestige],MATCH(tblsCollections[[#This Row],[cP1]],tblCards[ID],0)),0)","v":0},{"$f":"_xlfn.IFNA(INDEX(tblCards[Prestige],MATCH(tblsCollections[[#This Row],[cP2]],tblCards[ID],0)),0)","v":0},{"$f":"_xlfn.IFNA(INDEX(tblCards[Prestige],MATCH(tblsCollections[[#This Row],[cP3]],tblCards[ID],0)),0)","v":0},{"$f":"_xlfn.IFNA(INDEX(tblCards[Prestige],MATCH(tblsCollections[[#This Row],[cP4]],tblCards[ID],0)),0)","v":0}]
[null,"R",0,0,0,0,null,"R",{"$f":"INDEX(INDIRECT(\"tblCards[p\"&H22&\"]\"),MATCH($I$17,tblCards[ID],0))","v":2},0,false,0,{"$nulls":5},{"$f":"INDEX(tblCards[Gem],MATCH(tblsCollections[[#This Row],[cP1]],tblCards[ID],0))","v":{"$error":"#N/A"}},{"$f":"INDEX(tblCards[Gem],MATCH(tblsCollections[[#This Row],[cP2]],tblCards[ID],0))","v":{"$error":"#N/A"}},{"$f":"INDEX(tblCards[Gem],MATCH(tblsCollections[[#This Row],[cP3]],tblCards[ID],0))","v":{"$error":"#N/A"}},{"$f":"INDEX(tblCards[Gem],MATCH(tblsCollections[[#This Row],[cP4]],tblCards[ID],0))","v":{"$error":"#N/A"}},{"$f":"_xlfn.IFNA(INDEX(tblCards[Prestige],MATCH(tblsCollections[[#This Row],[cP1]],tblCards[ID],0)),0)","v":0},{"$f":"_xlfn.IFNA(INDEX(tblCards[Prestige],MATCH(tblsCollections[[#This Row],[cP2]],tblCards[ID],0)),0)","v":0},{"$f":"_xlfn.IFNA(INDEX(tblCards[Prestige],MATCH(tblsCollections[[#This Row],[cP3]],tblCards[ID],0)),0)","v":0},{"$f":"_xlfn.IFNA(INDEX(tblCards[Prestige],MATCH(tblsCollections[[#This Row],[cP4]],tblCards[ID],0)),0)","v":0}]
[null,"K",0,0,0,0,null,"K",{"$f":"INDEX(INDIRECT(\"tblCards[p\"&H23&\"]\"),MATCH($I$17,tblCards[ID],0))","v":1},0,false,0,{"$nulls":5},{"$f":"INDEX(tblCards[Gem],MATCH(tblsCollections[[#This Row],[cP1]],tblCards[ID],0))","v":{"$error":"#N/A"}},{"$f":"INDEX(tblCards[Gem],MATCH(tblsCollections[[#This Row],[cP2]],tblCards[ID],0))","v":{"$error":"#N/A"}},{"$f":"INDEX(tblCards[Gem],MATCH(tblsCollections[[#This Row],[cP3]],tblCards[ID],0))","v":{"$error":"#N/A"}},{"$f":"INDEX(tblCards[Gem],MATCH(tblsCollections[[#This Row],[cP4]],tblCards[ID],0))","v":{"$error":"#N/A"}},{"$f":"_xlfn.IFNA(INDEX(tblCards[Prestige],MATCH(tblsCollections[[#This Row],[cP1]],tblCards[ID],0)),0)","v":0},{"$f":"_xlfn.IFNA(INDEX(tblCards[Prestige],MATCH(tblsCollections[[#This Row],[cP2]],tblCards[ID],0)),0)","v":0},{"$f":"_xlfn.IFNA(INDEX(tblCards[Prestige],MATCH(tblsCollections[[#This Row],[cP3]],tblCards[ID],0)),0)","v":0},{"$f":"_xlfn.IFNA(INDEX(tblCards[Prestige],MATCH(tblsCollections[[#This Row],[cP4]],tblCards[ID],0)),0)","v":0}]
[null,"J",{"$f":"J8","v":0},{"$f":"K8","v":0},{"$f":"L8","v":0},{"$f":"M8","v":0},null,"J",null,0,{"$nulls":7},{"$f":"INDEX(tblCards[Gem],MATCH(tblsCollections[[#This Row],[cP1]],tblCards[ID],0))","v":{"$error":"#N/A"}},{"$f":"INDEX(tblCards[Gem],MATCH(tblsCollections[[#This Row],[cP2]],tblCards[ID],0))","v":{"$error":"#N/A"}},{"$f":"INDEX(tblCards[Gem],MATCH(tblsCollections[[#This Row],[cP3]],tblCards[ID],0))","v":{"$error":"#N/A"}},{"$f":"INDEX(tblCards[Gem],MATCH(tblsCollections[[#This Row],[cP4]],tblCards[ID],0))","v":{"$error":"#N/A"}},{"$f":"_xlfn.IFNA(INDEX(tblCards[Prestige],MATCH(tblsCollections[[#This Row],[cP1]],tblCards[ID],0)),0)","v":0},{"$f":"_xlfn.IFNA(INDEX(tblCards[Prestige],MATCH(tblsCollections[[#This Row],[cP2]],tblCards[ID],0)),0)","v":0},{"$f":"_xlfn.IFNA(INDEX(tblCards[Prestige],MATCH(tblsCollections[[#This Row],[cP3]],tblCards[ID],0)),0)","v":0},{"$f":"_xlfn.IFNA(INDEX(tblCards[Prestige],MATCH(tblsCollections[[#This Row],[cP4]],tblCards[ID],0)),0)","v":0}]
[{"$nulls":17},{"$f":"INDEX(tblCards[Gem],MATCH(tblsCollections[[#This Row],[cP1]],tblCards[ID],0))","v":{"$error":"#N/A"}},{"$f":"INDEX(tblCards[Gem],MATCH(tblsCollections[[#This Row],[cP2]],tblCards[ID],0))","v":{"$error":"#N/A"}},{"$f":"INDEX(tblCards[Gem],MATCH(tblsCollections[[#This Row],[cP3]],tblCards[ID],0))","v":{"$error":"#N/A"}},{"$f":"INDEX(tblCards[Gem],MATCH(tblsCollections[[#This Row],[cP4]],tblCards[ID],0))","v":{"$error":"#N/A"}},{"$f":"_xlfn.IFNA(INDEX(tblCards[Prestige],MATCH(tblsCollections[[#This Row],[cP1]],tblCards[ID],0)),0)","v":0},{"$f":"_xlfn.IFNA(INDEX(tblCards[Prestige],MATCH(tblsCollections[[#This Row],[cP2]],tblCards[ID],0)),0)","v":0},{"$f":"_xlfn.IFNA(INDEX(tblCards[Prestige],MATCH(tblsCollections[[#This Row],[cP3]],tblCards[ID],0)),0)","v":0},{"$f":"_xlfn.IFNA(INDEX(tblCards[Prestige],MATCH(tblsCollections[[#This Row],[cP4]],tblCards[ID],0)),0)","v":0}]
[{"$nulls":17},{"$f":"INDEX(tblCards[Gem],MATCH(tblsCollections[[#This Row],[cP1]],tblCards[ID],0))","v":{"$error":"#N/A"}},{"$f":"INDEX(tblCards[Gem],MATCH(tblsCollections[[#This Row],[cP2]],tblCards[ID],0))","v":{"$error":"#N/A"}},{"$f":"INDEX(tblCards[Gem],MATCH(tblsCollections[[#This Row],[cP3]],tblCards[ID],0))","v":{"$error":"#N/A"}},{"$f":"INDEX(tblCards[Gem],MATCH(tblsCollections[[#This Row],[cP4]],tblCards[ID],0))","v":{"$error":"#N/A"}},{"$f":"_xlfn.IFNA(INDEX(tblCards[Prestige],MATCH(tblsCollections[[#This Row],[cP1]],tblCards[ID],0)),0)","v":0},{"$f":"_xlfn.IFNA(INDEX(tblCards[Prestige],MATCH(tblsCollections[[#This Row],[cP2]],tblCards[ID],0)),0)","v":0},{"$f":"_xlfn.IFNA(INDEX(tblCards[Prestige],MATCH(tblsCollections[[#This Row],[cP3]],tblCards[ID],0)),0)","v":0},{"$f":"_xlfn.IFNA(INDEX(tblCards[Prestige],MATCH(tblsCollections[[#This Row],[cP4]],tblCards[ID],0)),0)","v":0}]
[{"$nulls":17},{"$f":"INDEX(tblCards[Gem],MATCH(tblsCollections[[#This Row],[cP1]],tblCards[ID],0))","v":{"$error":"#N/A"}},{"$f":"INDEX(tblCards[Gem],MATCH(tblsCollections[[#This Row],[cP2]],tblCards[ID],0))","v":{"$error":"#N/A"}},{"$f":"INDEX(tblCards[Gem],MATCH(tblsCollections[[#This Row],[cP3]],tblCards[ID],0))","v":{"$error":"#N/A"}},{"$f":"INDEX(tblCards[Gem],MATCH(tblsCollections[[#This Row],[cP4]],tblCards[ID],0))","v":{"$error":"#N/A"}},{"$f":"_xlfn.IFNA(INDEX(tblCards[Prestige],MATCH(tblsCollections[[#This Row],[cP1]],tblCards[ID],0)),0)","v":0},{"$f":"_xlfn.IFNA(INDEX(tblCards[Prestige],MATCH(tblsCollections[[#This Row],[cP2]],tblCards[ID],0)),0)","v":0},{"$f":"_xlfn.IFNA(INDEX(tblCards[Prestige],MATCH(tblsCollections[[#This Row],[cP3]],tblCards[ID],0)),0)","v":0},{"$f":"_xlfn.IFNA(INDEX(tblCards[Prestige],MATCH(tblsCollections[[#This Row],[cP4]],tblCards[ID],0)),0)","v":0}]
[null,"Reservations",{"$nulls":5},"Players/Computers",{"$nulls":9},{"$f":"INDEX(tblCards[Gem],MATCH(tblsCollections[[#This Row],[cP1]],tblCards[ID],0))","v":{"$error":"#N/A"}},{"$f":"INDEX(tblCards[Gem],MATCH(tblsCollections[[#This Row],[cP2]],tblCards[ID],0))","v":{"$error":"#N/A"}},{"$f":"INDEX(tblCards[Gem],MATCH(tblsCollections[[#This Row],[cP3]],tblCards[ID],0))","v":{"$error":"#N/A"}},{"$f":"INDEX(tblCards[Gem],MATCH(tblsCollections[[#This Row],[cP4]],tblCards[ID],0))","v":{"$error":"#N/A"}},{"$f":"_xlfn.IFNA(INDEX(tblCards[Prestige],MATCH(tblsCollections[[#This Row],[cP1]],tblCards[ID],0)),0)","v":0},{"$f":"_xlfn.IFNA(INDEX(tblCards[Prestige],MATCH(tblsCollections[[#This Row],[cP2]],tblCards[ID],0)),0)","v":0},{"$f":"_xlfn.IFNA(INDEX(tblCards[Prestige],MATCH(tblsCollections[[#This Row],[cP3]],tblCards[ID],0)),0)","v":0},{"$f":"_xlfn.IFNA(INDEX(tblCards[Prestige],MATCH(tblsCollections[[#This Row],[cP4]],tblCards[ID],0)),0)","v":0}]
[null,"resP1","resP2","resP3","resP4",null,null,"P1","P2","P3","P4",{"$nulls":6},{"$f":"INDEX(tblCards[Gem],MATCH(tblsCollections[[#This Row],[cP1]],tblCards[ID],0))","v":{"$error":"#N/A"}},{"$f":"INDEX(tblCards[Gem],MATCH(tblsCollections[[#This Row],[cP2]],tblCards[ID],0))","v":{"$error":"#N/A"}},{"$f":"INDEX(tblCards[Gem],MATCH(tblsCollections[[#This Row],[cP3]],tblCards[ID],0))","v":{"$error":"#N/A"}},{"$f":"INDEX(tblCards[Gem],MATCH(tblsCollections[[#This Row],[cP4]],tblCards[ID],0))","v":{"$error":"#N/A"}},{"$f":"_xlfn.IFNA(INDEX(tblCards[Prestige],MATCH(tblsCollections[[#This Row],[cP1]],tblCards[ID],0)),0)","v":0},{"$f":"_xlfn.IFNA(INDEX(tblCards[Prestige],MATCH(tblsCollections[[#This Row],[cP2]],tblCards[ID],0)),0)","v":0},{"$f":"_xlfn.IFNA(INDEX(tblCards[Prestige],MATCH(tblsCollections[[#This Row],[cP3]],tblCards[ID],0)),0)","v":0},{"$f":"_xlfn.IFNA(INDEX(tblCards[Prestige],MATCH(tblsCollections[[#This Row],[cP4]],tblCards[ID],0)),0)","v":0}]
[null,"0.0","0.0","0.0","0.0",null,null,"Player","Player",{"$nulls":8},{"$f":"INDEX(tblCards[Gem],MATCH(tblsCollections[[#This Row],[cP1]],tblCards[ID],0))","v":{"$error":"#N/A"}},{"$f":"INDEX(tblCards[Gem],MATCH(tblsCollections[[#This Row],[cP2]],tblCards[ID],0))","v":{"$error":"#N/A"}},{"$f":"INDEX(tblCards[Gem],MATCH(tblsCollections[[#This Row],[cP3]],tblCards[ID],0))","v":{"$error":"#N/A"}},{"$f":"INDEX(tblCards[Gem],MATCH(tblsCollections[[#This Row],[cP4]],tblCards[ID],0))","v":{"$error":"#N/A"}},{"$f":"_xlfn.IFNA(INDEX(tblCards[Prestige],MATCH(tblsCollections[[#This Row],[cP1]],tblCards[ID],0)),0)","v":0},{"$f":"_xlfn.IFNA(INDEX(tblCards[Prestige],MATCH(tblsCollections[[#This Row],[cP2]],tblCards[ID],0)),0)","v":0},{"$f":"_xlfn.IFNA(INDEX(tblCards[Prestige],MATCH(tblsCollections[[#This Row],[cP3]],tblCards[ID],0)),0)","v":0},{"$f":"_xlfn.IFNA(INDEX(tblCards[Prestige],MATCH(tblsCollections[[#This Row],[cP4]],tblCards[ID],0)),0)","v":0}]
[null,"0.0","0.0","0.0","0.0",{"$nulls":12},{"$f":"INDEX(tblCards[Gem],MATCH(tblsCollections[[#This Row],[cP1]],tblCards[ID],0))","v":{"$error":"#N/A"}},{"$f":"INDEX(tblCards[Gem],MATCH(tblsCollections[[#This Row],[cP2]],tblCards[ID],0))","v":{"$error":"#N/A"}},{"$f":"INDEX(tblCards[Gem],MATCH(tblsCollections[[#This Row],[cP3]],tblCards[ID],0))","v":{"$error":"#N/A"}},{"$f":"INDEX(tblCards[Gem],MATCH(tblsCollections[[#This Row],[cP4]],tblCards[ID],0))","v":{"$error":"#N/A"}},{"$f":"_xlfn.IFNA(INDEX(tblCards[Prestige],MATCH(tblsCollections[[#This Row],[cP1]],tblCards[ID],0)),0)","v":0},{"$f":"_xlfn.IFNA(INDEX(tblCards[Prestige],MATCH(tblsCollections[[#This Row],[cP2]],tblCards[ID],0)),0)","v":0},{"$f":"_xlfn.IFNA(INDEX(tblCards[Prestige],MATCH(tblsCollections[[#This Row],[cP3]],tblCards[ID],0)),0)","v":0},{"$f":"_xlfn.IFNA(INDEX(tblCards[Prestige],MATCH(tblsCollections[[#This Row],[cP4]],tblCards[ID],0)),0)","v":0}]
[null,"0.0","0.0","0.0","0.0",{"$nulls":12},{"$f":"INDEX(tblCards[Gem],MATCH(tblsCollections[[#This Row],[cP1]],tblCards[ID],0))","v":{"$error":"#N/A"}},{"$f":"INDEX(tblCards[Gem],MATCH(tblsCollections[[#This Row],[cP2]],tblCards[ID],0))","v":{"$error":"#N/A"}},{"$f":"INDEX(tblCards[Gem],MATCH(tblsCollections[[#This Row],[cP3]],tblCards[ID],0))","v":{"$error":"#N/A"}},{"$f":"INDEX(tblCards[Gem],MATCH(tblsCollections[[#This Row],[cP4]],tblCards[ID],0))","v":{"$error":"#N/A"}},{"$f":"_xlfn.IFNA(INDEX(tblCards[Prestige],MATCH(tblsCollections[[#This Row],[cP1]],tblCards[ID],0)),0)","v":0},{"$f":"_xlfn.IFNA(INDEX(tblCards[Prestige],MATCH(tblsCollections[[#This Row],[cP2]],tblCards[ID],0)),0)","v":0},{"$f":"_xlfn.IFNA(INDEX(tblCards[Prestige],MATCH(tblsCollections[[#This Row],[cP3]],tblCards[ID],0)),0)","v":0},{"$f":"_xlfn.IFNA(INDEX(tblCards[Prestige],MATCH(tblsCollections[[#This Row],[cP4]],tblCards[ID],0)),0)","v":0}]
[{"$nulls":17},{"$f":"INDEX(tblCards[Gem],MATCH(tblsCollections[[#This Row],[cP1]],tblCards[ID],0))","v":{"$error":"#N/A"}},{"$f":"INDEX(tblCards[Gem],MATCH(tblsCollections[[#This Row],[cP2]],tblCards[ID],0))","v":{"$error":"#N/A"}},{"$f":"INDEX(tblCards[Gem],MATCH(tblsCollections[[#This Row],[cP3]],tblCards[ID],0))","v":{"$error":"#N/A"}},{"$f":"INDEX(tblCards[Gem],MATCH(tblsCollections[[#This Row],[cP4]],tblCards[ID],0))","v":{"$error":"#N/A"}},{"$f":"_xlfn.IFNA(INDEX(tblCards[Prestige],MATCH(tblsCollections[[#This Row],[cP1]],tblCards[ID],0)),0)","v":0},{"$f":"_xlfn.IFNA(INDEX(tblCards[Prestige],MATCH(tblsCollections[[#This Row],[cP2]],tblCards[ID],0)),0)","v":0},{"$f":"_xlfn.IFNA(INDEX(tblCards[Prestige],MATCH(tblsCollections[[#This Row],[cP3]],tblCards[ID],0)),0)","v":0},{"$f":"_xlfn.IFNA(INDEX(tblCards[Prestige],MATCH(tblsCollections[[#This Row],[cP4]],tblCards[ID],0)),0)","v":0}]
[{"$nulls":17},{"$f":"INDEX(tblCards[Gem],MATCH(tblsCollections[[#This Row],[cP1]],tblCards[ID],0))","v":{"$error":"#N/A"}},{"$f":"INDEX(tblCards[Gem],MATCH(tblsCollections[[#This Row],[cP2]],tblCards[ID],0))","v":{"$error":"#N/A"}},{"$f":"INDEX(tblCards[Gem],MATCH(tblsCollections[[#This Row],[cP3]],tblCards[ID],0))","v":{"$error":"#N/A"}},{"$f":"INDEX(tblCards[Gem],MATCH(tblsCollections[[#This Row],[cP4]],tblCards[ID],0))","v":{"$error":"#N/A"}},{"$f":"_xlfn.IFNA(INDEX(tblCards[Prestige],MATCH(tblsCollections[[#This Row],[cP1]],tblCards[ID],0)),0)","v":0},{"$f":"_xlfn.IFNA(INDEX(tblCards[Prestige],MATCH(tblsCollections[[#This Row],[cP2]],tblCards[ID],0)),0)","v":0},{"$f":"_xlfn.IFNA(INDEX(tblCards[Prestige],MATCH(tblsCollections[[#This Row],[cP3]],tblCards[ID],0)),0)","v":0},{"$f":"_xlfn.IFNA(INDEX(tblCards[Prestige],MATCH(tblsCollections[[#This Row],[cP4]],tblCards[ID],0)),0)","v":0}]
[{"$nulls":17},{"$f":"INDEX(tblCards[Gem],MATCH(tblsCollections[[#This Row],[cP1]],tblCards[ID],0))","v":{"$error":"#N/A"}},{"$f":"INDEX(tblCards[Gem],MATCH(tblsCollections[[#This Row],[cP2]],tblCards[ID],0))","v":{"$error":"#N/A"}},{"$f":"INDEX(tblCards[Gem],MATCH(tblsCollections[[#This Row],[cP3]],tblCards[ID],0))","v":{"$error":"#N/A"}},{"$f":"INDEX(tblCards[Gem],MATCH(tblsCollections[[#This Row],[cP4]],tblCards[ID],0))","v":{"$error":"#N/A"}},{"$f":"_xlfn.IFNA(INDEX(tblCards[Prestige],MATCH(tblsCollections[[#This Row],[cP1]],tblCards[ID],0)),0)","v":0},{"$f":"_xlfn.IFNA(INDEX(tblCards[Prestige],MATCH(tblsCollections[[#This Row],[cP2]],tblCards[ID],0)),0)","v":0},{"$f":"_xlfn.IFNA(INDEX(tblCards[Prestige],MATCH(tblsCollections[[#This Row],[cP3]],tblCards[ID],0)),0)","v":0},{"$f":"_xlfn.IFNA(INDEX(tblCards[Prestige],MATCH(tblsCollections[[#This Row],[cP4]],tblCards[ID],0)),0)","v":0}]
[{"$nulls":17},{"$f":"INDEX(tblCards[Gem],MATCH(tblsCollections[[#This Row],[cP1]],tblCards[ID],0))","v":{"$error":"#N/A"}},{"$f":"INDEX(tblCards[Gem],MATCH(tblsCollections[[#This Row],[cP2]],tblCards[ID],0))","v":{"$error":"#N/A"}},{"$f":"INDEX(tblCards[Gem],MATCH(tblsCollections[[#This Row],[cP3]],tblCards[ID],0))","v":{"$error":"#N/A"}},{"$f":"INDEX(tblCards[Gem],MATCH(tblsCollections[[#This Row],[cP4]],tblCards[ID],0))","v":{"$error":"#N/A"}},{"$f":"_xlfn.IFNA(INDEX(tblCards[Prestige],MATCH(tblsCollections[[#This Row],[cP1]],tblCards[ID],0)),0)","v":0},{"$f":"_xlfn.IFNA(INDEX(tblCards[Prestige],MATCH(tblsCollections[[#This Row],[cP2]],tblCards[ID],0)),0)","v":0},{"$f":"_xlfn.IFNA(INDEX(tblCards[Prestige],MATCH(tblsCollections[[#This Row],[cP3]],tblCards[ID],0)),0)","v":0},{"$f":"_xlfn.IFNA(INDEX(tblCards[Prestige],MATCH(tblsCollections[[#This Row],[cP4]],tblCards[ID],0)),0)","v":0}]
[{"$nulls":17},{"$f":"INDEX(tblCards[Gem],MATCH(tblsCollections[[#This Row],[cP1]],tblCards[ID],0))","v":{"$error":"#N/A"}},{"$f":"INDEX(tblCards[Gem],MATCH(tblsCollections[[#This Row],[cP2]],tblCards[ID],0))","v":{"$error":"#N/A"}},{"$f":"INDEX(tblCards[Gem],MATCH(tblsCollections[[#This Row],[cP3]],tblCards[ID],0))","v":{"$error":"#N/A"}},{"$f":"INDEX(tblCards[Gem],MATCH(tblsCollections[[#This Row],[cP4]],tblCards[ID],0))","v":{"$error":"#N/A"}},{"$f":"_xlfn.IFNA(INDEX(tblCards[Prestige],MATCH(tblsCollections[[#This Row],[cP1]],tblCards[ID],0)),0)","v":0},{"$f":"_xlfn.IFNA(INDEX(tblCards[Prestige],MATCH(tblsCollections[[#This Row],[cP2]],tblCards[ID],0)),0)","v":0},{"$f":"_xlfn.IFNA(INDEX(tblCards[Prestige],MATCH(tblsCollections[[#This Row],[cP3]],tblCards[ID],0)),0)","v":0},{"$f":"_xlfn.IFNA(INDEX(tblCards[Prestige],MATCH(tblsCollections[[#This Row],[cP4]],tblCards[ID],0)),0)","v":0}]
[{"$nulls":17},{"$f":"INDEX(tblCards[Gem],MATCH(tblsCollections[[#This Row],[cP1]],tblCards[ID],0))","v":{"$error":"#N/A"}},{"$f":"INDEX(tblCards[Gem],MATCH(tblsCollections[[#This Row],[cP2]],tblCards[ID],0))","v":{"$error":"#N/A"}},{"$f":"INDEX(tblCards[Gem],MATCH(tblsCollections[[#This Row],[cP3]],tblCards[ID],0))","v":{"$error":"#N/A"}},{"$f":"INDEX(tblCards[Gem],MATCH(tblsCollections[[#This Row],[cP4]],tblCards[ID],0))","v":{"$error":"#N/A"}},{"$f":"_xlfn.IFNA(INDEX(tblCards[Prestige],MATCH(tblsCollections[[#This Row],[cP1]],tblCards[ID],0)),0)","v":0},{"$f":"_xlfn.IFNA(INDEX(tblCards[Prestige],MATCH(tblsCollections[[#This Row],[cP2]],tblCards[ID],0)),0)","v":0},{"$f":"_xlfn.IFNA(INDEX(tblCards[Prestige],MATCH(tblsCollections[[#This Row],[cP3]],tblCards[ID],0)),0)","v":0},{"$f":"_xlfn.IFNA(INDEX(tblCards[Prestige],MATCH(tblsCollections[[#This Row],[cP4]],tblCards[ID],0)),0)","v":0}]
[{"$nulls":17},{"$f":"INDEX(tblCards[Gem],MATCH(tblsCollections[[#This Row],[cP1]],tblCards[ID],0))","v":{"$error":"#N/A"}},{"$f":"INDEX(tblCards[Gem],MATCH(tblsCollections[[#This Row],[cP2]],tblCards[ID],0))","v":{"$error":"#N/A"}},{"$f":"INDEX(tblCards[Gem],MATCH(tblsCollections[[#This Row],[cP3]],tblCards[ID],0))","v":{"$error":"#N/A"}},{"$f":"INDEX(tblCards[Gem],MATCH(tblsCollections[[#This Row],[cP4]],tblCards[ID],0))","v":{"$error":"#N/A"}},{"$f":"_xlfn.IFNA(INDEX(tblCards[Prestige],MATCH(tblsCollections[[#This Row],[cP1]],tblCards[ID],0)),0)","v":0},{"$f":"_xlfn.IFNA(INDEX(tblCards[Prestige],MATCH(tblsCollections[[#This Row],[cP2]],tblCards[ID],0)),0)","v":0},{"$f":"_xlfn.IFNA(INDEX(tblCards[Prestige],MATCH(tblsCollections[[#This Row],[cP3]],tblCards[ID],0)),0)","v":0},{"$f":"_xlfn.IFNA(INDEX(tblCards[Prestige],MATCH(tblsCollections[[#This Row],[cP4]],tblCards[ID],0)),0)","v":0}]
[{"$nulls":17},{"$f":"INDEX(tblCards[Gem],MATCH(tblsCollections[[#This Row],[cP1]],tblCards[ID],0))","v":{"$error":"#N/A"}},{"$f":"INDEX(tblCards[Gem],MATCH(tblsCollections[[#This Row],[cP2]],tblCards[ID],0))","v":{"$error":"#N/A"}},{"$f":"INDEX(tblCards[Gem],MATCH(tblsCollections[[#This Row],[cP3]],tblCards[ID],0))","v":{"$error":"#N/A"}},{"$f":"INDEX(tblCards[Gem],MATCH(tblsCollections[[#This Row],[cP4]],tblCards[ID],0))","v":{"$error":"#N/A"}},{"$f":"_xlfn.IFNA(INDEX(tblCards[Prestige],MATCH(tblsCollections[[#This Row],[cP1]],tblCards[ID],0)),0)","v":0},{"$f":"_xlfn.IFNA(INDEX(tblCards[Prestige],MATCH(tblsCollections[[#This Row],[cP2]],tblCards[ID],0)),0)","v":0},{"$f":"_xlfn.IFNA(INDEX(tblCards[Prestige],MATCH(tblsCollections[[#This Row],[cP3]],tblCards[ID],0)),0)","v":0},{"$f":"_xlfn.IFNA(INDEX(tblCards[Prestige],MATCH(tblsCollections[[#This Row],[cP4]],tblCards[ID],0)),0)","v":0}]
[{"$nulls":17},{"$f":"INDEX(tblCards[Gem],MATCH(tblsCollections[[#This Row],[cP1]],tblCards[ID],0))","v":{"$error":"#N/A"}},{"$f":"INDEX(tblCards[Gem],MATCH(tblsCollections[[#This Row],[cP2]],tblCards[ID],0))","v":{"$error":"#N/A"}},{"$f":"INDEX(tblCards[Gem],MATCH(tblsCollections[[#This Row],[cP3]],tblCards[ID],0))","v":{"$error":"#N/A"}},{"$f":"INDEX(tblCards[Gem],MATCH(tblsCollections[[#This Row],[cP4]],tblCards[ID],0))","v":{"$error":"#N/A"}},{"$f":"_xlfn.IFNA(INDEX(tblCards[Prestige],MATCH(tblsCollections[[#This Row],[cP1]],tblCards[ID],0)),0)","v":0},{"$f":"_xlfn.IFNA(INDEX(tblCards[Prestige],MATCH(tblsCollections[[#This Row],[cP2]],tblCards[ID],0)),0)","v":0},{"$f":"_xlfn.IFNA(INDEX(tblCards[Prestige],MATCH(tblsCollections[[#This Row],[cP3]],tblCards[ID],0)),0)","v":0},{"$f":"_xlfn.IFNA(INDEX(tblCards[Prestige],MATCH(tblsCollections[[#This Row],[cP4]],tblCards[ID],0)),0)","v":0}]
[{"$nulls":17},{"$f":"INDEX(tblCards[Gem],MATCH(tblsCollections[[#This Row],[cP1]],tblCards[ID],0))","v":{"$error":"#N/A"}},{"$f":"INDEX(tblCards[Gem],MATCH(tblsCollections[[#This Row],[cP2]],tblCards[ID],0))","v":{"$error":"#N/A"}},{"$f":"INDEX(tblCards[Gem],MATCH(tblsCollections[[#This Row],[cP3]],tblCards[ID],0))","v":{"$error":"#N/A"}},{"$f":"INDEX(tblCards[Gem],MATCH(tblsCollections[[#This Row],[cP4]],tblCards[ID],0))","v":{"$error":"#N/A"}},{"$f":"_xlfn.IFNA(INDEX(tblCards[Prestige],MATCH(tblsCollections[[#This Row],[cP1]],tblCards[ID],0)),0)","v":0},{"$f":"_xlfn.IFNA(INDEX(tblCards[Prestige],MATCH(tblsCollections[[#This Row],[cP2]],tblCards[ID],0)),0)","v":0},{"$f":"_xlfn.IFNA(INDEX(tblCards[Prestige],MATCH(tblsCollections[[#This Row],[cP3]],tblCards[ID],0)),0)","v":0},{"$f":"_xlfn.IFNA(INDEX(tblCards[Prestige],MATCH(tblsCollections[[#This Row],[cP4]],tblCards[ID],0)),0)","v":0}]
[{"$nulls":17},{"$f":"INDEX(tblCards[Gem],MATCH(tblsCollections[[#This Row],[cP1]],tblCards[ID],0))","v":{"$error":"#N/A"}},{"$f":"INDEX(tblCards[Gem],MATCH(tblsCollections[[#This Row],[cP2]],tblCards[ID],0))","v":{"$error":"#N/A"}},{"$f":"INDEX(tblCards[Gem],MATCH(tblsCollections[[#This Row],[cP3]],tblCards[ID],0))","v":{"$error":"#N/A"}},{"$f":"INDEX(tblCards[Gem],MATCH(tblsCollections[[#This Row],[cP4]],tblCards[ID],0))","v":{"$error":"#N/A"}},{"$f":"_xlfn.IFNA(INDEX(tblCards[Prestige],MATCH(tblsCollections[[#This Row],[cP1]],tblCards[ID],0)),0)","v":0},{"$f":"_xlfn.IFNA(INDEX(tblCards[Prestige],MATCH(tblsCollections[[#This Row],[cP2]],tblCards[ID],0)),0)","v":0},{"$f":"_xlfn.IFNA(INDEX(tblCards[Prestige],MATCH(tblsCollections[[#This Row],[cP3]],tblCards[ID],0)),0)","v":0},{"$f":"_xlfn.IFNA(INDEX(tblCards[Prestige],MATCH(tblsCollections[[#This Row],[cP4]],tblCards[ID],0)),0)","v":0}]
[{"$nulls":17},{"$f":"INDEX(tblCards[Gem],MATCH(tblsCollections[[#This Row],[cP1]],tblCards[ID],0))","v":{"$error":"#N/A"}},{"$f":"INDEX(tblCards[Gem],MATCH(tblsCollections[[#This Row],[cP2]],tblCards[ID],0))","v":{"$error":"#N/A"}},{"$f":"INDEX(tblCards[Gem],MATCH(tblsCollections[[#This Row],[cP3]],tblCards[ID],0))","v":{"$error":"#N/A"}},{"$f":"INDEX(tblCards[Gem],MATCH(tblsCollections[[#This Row],[cP4]],tblCards[ID],0))","v":{"$error":"#N/A"}},{"$f":"_xlfn.IFNA(INDEX(tblCards[Prestige],MATCH(tblsCollections[[#This Row],[cP1]],tblCards[ID],0)),0)","v":0},{"$f":"_xlfn.IFNA(INDEX(tblCards[Prestige],MATCH(tblsCollections[[#This Row],[cP2]],tblCards[ID],0)),0)","v":0},{"$f":"_xlfn.IFNA(INDEX(tblCards[Prestige],MATCH(tblsCollections[[#This Row],[cP3]],tblCards[ID],0)),0)","v":0},{"$f":"_xlfn.IFNA(INDEX(tblCards[Prestige],MATCH(tblsCollections[[#This Row],[cP4]],tblCards[ID],0)),0)","v":0}]
[{"$nulls":17},{"$f":"INDEX(tblCards[Gem],MATCH(tblsCollections[[#This Row],[cP1]],tblCards[ID],0))","v":{"$error":"#N/A"}},{"$f":"INDEX(tblCards[Gem],MATCH(tblsCollections[[#This Row],[cP2]],tblCards[ID],0))","v":{"$error":"#N/A"}},{"$f":"INDEX(tblCards[Gem],MATCH(tblsCollections[[#This Row],[cP3]],tblCards[ID],0))","v":{"$error":"#N/A"}},{"$f":"INDEX(tblCards[Gem],MATCH(tblsCollections[[#This Row],[cP4]],tblCards[ID],0))","v":{"$error":"#N/A"}},{"$f":"_xlfn.IFNA(INDEX(tblCards[Prestige],MATCH(tblsCollections[[#This Row],[cP1]],tblCards[ID],0)),0)","v":0},{"$f":"_xlfn.IFNA(INDEX(tblCards[Prestige],MATCH(tblsCollections[[#This Row],[cP2]],tblCards[ID],0)),0)","v":0},{"$f":"_xlfn.IFNA(INDEX(tblCards[Prestige],MATCH(tblsCollections[[#This Row],[cP3]],tblCards[ID],0)),0)","v":0},{"$f":"_xlfn.IFNA(INDEX(tblCards[Prestige],MATCH(tblsCollections[[#This Row],[cP4]],tblCards[ID],0)),0)","v":0}]
[{"$nulls":17},{"$f":"INDEX(tblCards[Gem],MATCH(tblsCollections[[#This Row],[cP1]],tblCards[ID],0))","v":{"$error":"#N/A"}},{"$f":"INDEX(tblCards[Gem],MATCH(tblsCollections[[#This Row],[cP2]],tblCards[ID],0))","v":{"$error":"#N/A"}},{"$f":"INDEX(tblCards[Gem],MATCH(tblsCollections[[#This Row],[cP3]],tblCards[ID],0))","v":{"$error":"#N/A"}},{"$f":"INDEX(tblCards[Gem],MATCH(tblsCollections[[#This Row],[cP4]],tblCards[ID],0))","v":{"$error":"#N/A"}},{"$f":"_xlfn.IFNA(INDEX(tblCards[Prestige],MATCH(tblsCollections[[#This Row],[cP1]],tblCards[ID],0)),0)","v":0},{"$f":"_xlfn.IFNA(INDEX(tblCards[Prestige],MATCH(tblsCollections[[#This Row],[cP2]],tblCards[ID],0)),0)","v":0},{"$f":"_xlfn.IFNA(INDEX(tblCards[Prestige],MATCH(tblsCollections[[#This Row],[cP3]],tblCards[ID],0)),0)","v":0},{"$f":"_xlfn.IFNA(INDEX(tblCards[Prestige],MATCH(tblsCollections[[#This Row],[cP4]],tblCards[ID],0)),0)","v":0}]
[{"$nulls":17},{"$f":"INDEX(tblCards[Gem],MATCH(tblsCollections[[#This Row],[cP1]],tblCards[ID],0))","v":{"$error":"#N/A"}},{"$f":"INDEX(tblCards[Gem],MATCH(tblsCollections[[#This Row],[cP2]],tblCards[ID],0))","v":{"$error":"#N/A"}},{"$f":"INDEX(tblCards[Gem],MATCH(tblsCollections[[#This Row],[cP3]],tblCards[ID],0))","v":{"$error":"#N/A"}},{"$f":"INDEX(tblCards[Gem],MATCH(tblsCollections[[#This Row],[cP4]],tblCards[ID],0))","v":{"$error":"#N/A"}},{"$f":"_xlfn.IFNA(INDEX(tblCards[Prestige],MATCH(tblsCollections[[#This Row],[cP1]],tblCards[ID],0)),0)","v":0},{"$f":"_xlfn.IFNA(INDEX(tblCards[Prestige],MATCH(tblsCollections[[#This Row],[cP2]],tblCards[ID],0)),0)","v":0},{"$f":"_xlfn.IFNA(INDEX(tblCards[Prestige],MATCH(tblsCollections[[#This Row],[cP3]],tblCards[ID],0)),0)","v":0},{"$f":"_xlfn.IFNA(INDEX(tblCards[Prestige],MATCH(tblsCollections[[#This Row],[cP4]],tblCards[ID],0)),0)","v":0}]
[{"$nulls":17},{"$f":"INDEX(tblCards[Gem],MATCH(tblsCollections[[#This Row],[cP1]],tblCards[ID],0))","v":{"$error":"#N/A"}},{"$f":"INDEX(tblCards[Gem],MATCH(tblsCollections[[#This Row],[cP2]],tblCards[ID],0))","v":{"$error":"#N/A"}},{"$f":"INDEX(tblCards[Gem],MATCH(tblsCollections[[#This Row],[cP3]],tblCards[ID],0))","v":{"$error":"#N/A"}},{"$f":"INDEX(tblCards[Gem],MATCH(tblsCollections[[#This Row],[cP4]],tblCards[ID],0))","v":{"$error":"#N/A"}},{"$f":"_xlfn.IFNA(INDEX(tblCards[Prestige],MATCH(tblsCollections[[#This Row],[cP1]],tblCards[ID],0)),0)","v":0},{"$f":"_xlfn.IFNA(INDEX(tblCards[Prestige],MATCH(tblsCollections[[#This Row],[cP2]],tblCards[ID],0)),0)","v":0},{"$f":"_xlfn.IFNA(INDEX(tblCards[Prestige],MATCH(tblsCollections[[#This Row],[cP3]],tblCards[ID],0)),0)","v":0},{"$f":"_xlfn.IFNA(INDEX(tblCards[Prestige],MATCH(tblsCollections[[#This Row],[cP4]],tblCards[ID],0)),0)","v":0}]
[{"$nulls":17},{"$f":"INDEX(tblCards[Gem],MATCH(tblsCollections[[#This Row],[cP1]],tblCards[ID],0))","v":{"$error":"#N/A"}},{"$f":"INDEX(tblCards[Gem],MATCH(tblsCollections[[#This Row],[cP2]],tblCards[ID],0))","v":{"$error":"#N/A"}},{"$f":"INDEX(tblCards[Gem],MATCH(tblsCollections[[#This Row],[cP3]],tblCards[ID],0))","v":{"$error":"#N/A"}},{"$f":"INDEX(tblCards[Gem],MATCH(tblsCollections[[#This Row],[cP4]],tblCards[ID],0))","v":{"$error":"#N/A"}},{"$f":"_xlfn.IFNA(INDEX(tblCards[Prestige],MATCH(tblsCollections[[#This Row],[cP1]],tblCards[ID],0)),0)","v":0},{"$f":"_xlfn.IFNA(INDEX(tblCards[Prestige],MATCH(tblsCollections[[#This Row],[cP2]],tblCards[ID],0)),0)","v":0},{"$f":"_xlfn.IFNA(INDEX(tblCards[Prestige],MATCH(tblsCollections[[#This Row],[cP3]],tblCards[ID],0)),0)","v":0},{"$f":"_xlfn.IFNA(INDEX(tblCards[Prestige],MATCH(tblsCollections[[#This Row],[cP4]],tblCards[ID],0)),0)","v":0}]
[{"$nulls":17},{"$f":"INDEX(tblCards[Gem],MATCH(tblsCollections[[#This Row],[cP1]],tblCards[ID],0))","v":{"$error":"#N/A"}},{"$f":"INDEX(tblCards[Gem],MATCH(tblsCollections[[#This Row],[cP2]],tblCards[ID],0))","v":{"$error":"#N/A"}},{"$f":"INDEX(tblCards[Gem],MATCH(tblsCollections[[#This Row],[cP3]],tblCards[ID],0))","v":{"$error":"#N/A"}},{"$f":"INDEX(tblCards[Gem],MATCH(tblsCollections[[#This Row],[cP4]],tblCards[ID],0))","v":{"$error":"#N/A"}},{"$f":"_xlfn.IFNA(INDEX(tblCards[Prestige],MATCH(tblsCollections[[#This Row],[cP1]],tblCards[ID],0)),0)","v":0},{"$f":"_xlfn.IFNA(INDEX(tblCards[Prestige],MATCH(tblsCollections[[#This Row],[cP2]],tblCards[ID],0)),0)","v":0},{"$f":"_xlfn.IFNA(INDEX(tblCards[Prestige],MATCH(tblsCollections[[#This Row],[cP3]],tblCards[ID],0)),0)","v":0},{"$f":"_xlfn.IFNA(INDEX(tblCards[Prestige],MATCH(tblsCollections[[#This Row],[cP4]],tblCards[ID],0)),0)","v":0}]
[{"$nulls":17},{"$f":"INDEX(tblCards[Gem],MATCH(tblsCollections[[#This Row],[cP1]],tblCards[ID],0))","v":{"$error":"#N/A"}},{"$f":"INDEX(tblCards[Gem],MATCH(tblsCollections[[#This Row],[cP2]],tblCards[ID],0))","v":{"$error":"#N/A"}},{"$f":"INDEX(tblCards[Gem],MATCH(tblsCollections[[#This Row],[cP3]],tblCards[ID],0))","v":{"$error":"#N/A"}},{"$f":"INDEX(tblCards[Gem],MATCH(tblsCollections[[#This Row],[cP4]],tblCards[ID],0))","v":{"$error":"#N/A"}},{"$f":"_xlfn.IFNA(INDEX(tblCards[Prestige],MATCH(tblsCollections[[#This Row],[cP1]],tblCards[ID],0)),0)","v":0},{"$f":"_xlfn.IFNA(INDEX(tblCards[Prestige],MATCH(tblsCollections[[#This Row],[cP2]],tblCards[ID],0)),0)","v":0},{"$f":"_xlfn.IFNA(INDEX(tblCards[Prestige],MATCH(tblsCollections[[#This Row],[cP3]],tblCards[ID],0)),0)","v":0},{"$f":"_xlfn.IFNA(INDEX(tblCards[Prestige],MATCH(tblsCollections[[#This Row],[cP4]],tblCards[ID],0)),0)","v":0}]
[{"$nulls":17},{"$f":"INDEX(tblCards[Gem],MATCH(tblsCollections[[#This Row],[cP1]],tblCards[ID],0))","v":{"$error":"#N/A"}},{"$f":"INDEX(tblCards[Gem],MATCH(tblsCollections[[#This Row],[cP2]],tblCards[ID],0))","v":{"$error":"#N/A"}},{"$f":"INDEX(tblCards[Gem],MATCH(tblsCollections[[#This Row],[cP3]],tblCards[ID],0))","v":{"$error":"#N/A"}},{"$f":"INDEX(tblCards[Gem],MATCH(tblsCollections[[#This Row],[cP4]],tblCards[ID],0))","v":{"$error":"#N/A"}},{"$f":"_xlfn.IFNA(INDEX(tblCards[Prestige],MATCH(tblsCollections[[#This Row],[cP1]],tblCards[ID],0)),0)","v":0},{"$f":"_xlfn.IFNA(INDEX(tblCards[Prestige],MATCH(tblsCollections[[#This Row],[cP2]],tblCards[ID],0)),0)","v":0},{"$f":"_xlfn.IFNA(INDEX(tblCards[Prestige],MATCH(tblsCollections[[#This Row],[cP3]],tblCards[ID],0)),0)","v":0},{"$f":"_xlfn.IFNA(INDEX(tblCards[Prestige],MATCH(tblsCollections[[#This Row],[cP4]],tblCards[ID],0)),0)","v":0}]
[{"$nulls":17},{"$f":"INDEX(tblCards[Gem],MATCH(tblsCollections[[#This Row],[cP1]],tblCards[ID],0))","v":{"$error":"#N/A"}},{"$f":"INDEX(tblCards[Gem],MATCH(tblsCollections[[#This Row],[cP2]],tblCards[ID],0))","v":{"$error":"#N/A"}},{"$f":"INDEX(tblCards[Gem],MATCH(tblsCollections[[#This Row],[cP3]],tblCards[ID],0))","v":{"$error":"#N/A"}},{"$f":"INDEX(tblCards[Gem],MATCH(tblsCollections[[#This Row],[cP4]],tblCards[ID],0))","v":{"$error":"#N/A"}},{"$f":"_xlfn.IFNA(INDEX(tblCards[Prestige],MATCH(tblsCollections[[#This Row],[cP1]],tblCards[ID],0)),0)","v":0},{"$f":"_xlfn.IFNA(INDEX(tblCards[Prestige],MATCH(tblsCollections[[#This Row],[cP2]],tblCards[ID],0)),0)","v":0},{"$f":"_xlfn.IFNA(INDEX(tblCards[Prestige],MATCH(tblsCollections[[#This Row],[cP3]],tblCards[ID],0)),0)","v":0},{"$f":"_xlfn.IFNA(INDEX(tblCards[Prestige],MATCH(tblsCollections[[#This Row],[cP4]],tblCards[ID],0)),0)","v":0}]
[{"$nulls":17},{"$f":"INDEX(tblCards[Gem],MATCH(tblsCollections[[#This Row],[cP1]],tblCards[ID],0))","v":{"$error":"#N/A"}},{"$f":"INDEX(tblCards[Gem],MATCH(tblsCollections[[#This Row],[cP2]],tblCards[ID],0))","v":{"$error":"#N/A"}},{"$f":"INDEX(tblCards[Gem],MATCH(tblsCollections[[#This Row],[cP3]],tblCards[ID],0))","v":{"$error":"#N/A"}},{"$f":"INDEX(tblCards[Gem],MATCH(tblsCollections[[#This Row],[cP4]],tblCards[ID],0))","v":{"$error":"#N/A"}},{"$f":"_xlfn.IFNA(INDEX(tblCards[Prestige],MATCH(tblsCollections[[#This Row],[cP1]],tblCards[ID],0)),0)","v":0},{"$f":"_xlfn.IFNA(INDEX(tblCards[Prestige],MATCH(tblsCollections[[#This Row],[cP2]],tblCards[ID],0)),0)","v":0},{"$f":"_xlfn.IFNA(INDEX(tblCards[Prestige],MATCH(tblsCollections[[#This Row],[cP3]],tblCards[ID],0)),0)","v":0},{"$f":"_xlfn.IFNA(INDEX(tblCards[Prestige],MATCH(tblsCollections[[#This Row],[cP4]],tblCards[ID],0)),0)","v":0}]
[{"$nulls":17},{"$f":"INDEX(tblCards[Gem],MATCH(tblsCollections[[#This Row],[cP1]],tblCards[ID],0))","v":{"$error":"#N/A"}},{"$f":"INDEX(tblCards[Gem],MATCH(tblsCollections[[#This Row],[cP2]],tblCards[ID],0))","v":{"$error":"#N/A"}},{"$f":"INDEX(tblCards[Gem],MATCH(tblsCollections[[#This Row],[cP3]],tblCards[ID],0))","v":{"$error":"#N/A"}},{"$f":"INDEX(tblCards[Gem],MATCH(tblsCollections[[#This Row],[cP4]],tblCards[ID],0))","v":{"$error":"#N/A"}},{"$f":"_xlfn.IFNA(INDEX(tblCards[Prestige],MATCH(tblsCollections[[#This Row],[cP1]],tblCards[ID],0)),0)","v":0},{"$f":"_xlfn.IFNA(INDEX(tblCards[Prestige],MATCH(tblsCollections[[#This Row],[cP2]],tblCards[ID],0)),0)","v":0},{"$f":"_xlfn.IFNA(INDEX(tblCards[Prestige],MATCH(tblsCollections[[#This Row],[cP3]],tblCards[ID],0)),0)","v":0},{"$f":"_xlfn.IFNA(INDEX(tblCards[Prestige],MATCH(tblsCollections[[#This Row],[cP4]],tblCards[ID],0)),0)","v":0}]
[{"$nulls":17},{"$f":"INDEX(tblCards[Gem],MATCH(tblsCollections[[#This Row],[cP1]],tblCards[ID],0))","v":{"$error":"#N/A"}},{"$f":"INDEX(tblCards[Gem],MATCH(tblsCollections[[#This Row],[cP2]],tblCards[ID],0))","v":{"$error":"#N/A"}},{"$f":"INDEX(tblCards[Gem],MATCH(tblsCollections[[#This Row],[cP3]],tblCards[ID],0))","v":{"$error":"#N/A"}},{"$f":"INDEX(tblCards[Gem],MATCH(tblsCollections[[#This Row],[cP4]],tblCards[ID],0))","v":{"$error":"#N/A"}},{"$f":"_xlfn.IFNA(INDEX(tblCards[Prestige],MATCH(tblsCollections[[#This Row],[cP1]],tblCards[ID],0)),0)","v":0},{"$f":"_xlfn.IFNA(INDEX(tblCards[Prestige],MATCH(tblsCollections[[#This Row],[cP2]],tblCards[ID],0)),0)","v":0},{"$f":"_xlfn.IFNA(INDEX(tblCards[Prestige],MATCH(tblsCollections[[#This Row],[cP3]],tblCards[ID],0)),0)","v":0},{"$f":"_xlfn.IFNA(INDEX(tblCards[Prestige],MATCH(tblsCollections[[#This Row],[cP4]],tblCards[ID],0)),0)","v":0}]
[{"$nulls":17},{"$f":"INDEX(tblCards[Gem],MATCH(tblsCollections[[#This Row],[cP1]],tblCards[ID],0))","v":{"$error":"#N/A"}},{"$f":"INDEX(tblCards[Gem],MATCH(tblsCollections[[#This Row],[cP2]],tblCards[ID],0))","v":{"$error":"#N/A"}},{"$f":"INDEX(tblCards[Gem],MATCH(tblsCollections[[#This Row],[cP3]],tblCards[ID],0))","v":{"$error":"#N/A"}},{"$f":"INDEX(tblCards[Gem],MATCH(tblsCollections[[#This Row],[cP4]],tblCards[ID],0))","v":{"$error":"#N/A"}},{"$f":"_xlfn.IFNA(INDEX(tblCards[Prestige],MATCH(tblsCollections[[#This Row],[cP1]],tblCards[ID],0)),0)","v":0},{"$f":"_xlfn.IFNA(INDEX(tblCards[Prestige],MATCH(tblsCollections[[#This Row],[cP2]],tblCards[ID],0)),0)","v":0},{"$f":"_xlfn.IFNA(INDEX(tblCards[Prestige],MATCH(tblsCollections[[#This Row],[cP3]],tblCards[ID],0)),0)","v":0},{"$f":"_xlfn.IFNA(INDEX(tblCards[Prestige],MATCH(tblsCollections[[#This Row],[cP4]],tblCards[ID],0)),0)","v":0}]
[{"$nulls":17},{"$f":"INDEX(tblCards[Gem],MATCH(tblsCollections[[#This Row],[cP1]],tblCards[ID],0))","v":{"$error":"#N/A"}},{"$f":"INDEX(tblCards[Gem],MATCH(tblsCollections[[#This Row],[cP2]],tblCards[ID],0))","v":{"$error":"#N/A"}},{"$f":"INDEX(tblCards[Gem],MATCH(tblsCollections[[#This Row],[cP3]],tblCards[ID],0))","v":{"$error":"#N/A"}},{"$f":"INDEX(tblCards[Gem],MATCH(tblsCollections[[#This Row],[cP4]],tblCards[ID],0))","v":{"$error":"#N/A"}},{"$f":"_xlfn.IFNA(INDEX(tblCards[Prestige],MATCH(tblsCollections[[#This Row],[cP1]],tblCards[ID],0)),0)","v":0},{"$f":"_xlfn.IFNA(INDEX(tblCards[Prestige],MATCH(tblsCollections[[#This Row],[cP2]],tblCards[ID],0)),0)","v":0},{"$f":"_xlfn.IFNA(INDEX(tblCards[Prestige],MATCH(tblsCollections[[#This Row],[cP3]],tblCards[ID],0)),0)","v":0},{"$f":"_xlfn.IFNA(INDEX(tblCards[Prestige],MATCH(tblsCollections[[#This Row],[cP4]],tblCards[ID],0)),0)","v":0}]
[{"$nulls":17},{"$f":"INDEX(tblCards[Gem],MATCH(tblsCollections[[#This Row],[cP1]],tblCards[ID],0))","v":{"$error":"#N/A"}},{"$f":"INDEX(tblCards[Gem],MATCH(tblsCollections[[#This Row],[cP2]],tblCards[ID],0))","v":{"$error":"#N/A"}},{"$f":"INDEX(tblCards[Gem],MATCH(tblsCollections[[#This Row],[cP3]],tblCards[ID],0))","v":{"$error":"#N/A"}},{"$f":"INDEX(tblCards[Gem],MATCH(tblsCollections[[#This Row],[cP4]],tblCards[ID],0))","v":{"$error":"#N/A"}},{"$f":"_xlfn.IFNA(INDEX(tblCards[Prestige],MATCH(tblsCollections[[#This Row],[cP1]],tblCards[ID],0)),0)","v":0},{"$f":"_xlfn.IFNA(INDEX(tblCards[Prestige],MATCH(tblsCollections[[#This Row],[cP2]],tblCards[ID],0)),0)","v":0},{"$f":"_xlfn.IFNA(INDEX(tblCards[Prestige],MATCH(tblsCollections[[#This Row],[cP3]],tblCards[ID],0)),0)","v":0},{"$f":"_xlfn.IFNA(INDEX(tblCards[Prestige],MATCH(tblsCollections[[#This Row],[cP4]],tblCards[ID],0)),0)","v":0}]
[{"$nulls":17},{"$f":"INDEX(tblCards[Gem],MATCH(tblsCollections[[#This Row],[cP1]],tblCards[ID],0))","v":{"$error":"#N/A"}},{"$f":"INDEX(tblCards[Gem],MATCH(tblsCollections[[#This Row],[cP2]],tblCards[ID],0))","v":{"$error":"#N/A"}},{"$f":"INDEX(tblCards[Gem],MATCH(tblsCollections[[#This Row],[cP3]],tblCards[ID],0))","v":{"$error":"#N/A"}},{"$f":"INDEX(tblCards[Gem],MATCH(tblsCollections[[#This Row],[cP4]],tblCards[ID],0))","v":{"$error":"#N/A"}},{"$f":"_xlfn.IFNA(INDEX(tblCards[Prestige],MATCH(tblsCollections[[#This Row],[cP1]],tblCards[ID],0)),0)","v":0},{"$f":"_xlfn.IFNA(INDEX(tblCards[Prestige],MATCH(tblsCollections[[#This Row],[cP2]],tblCards[ID],0)),0)","v":0},{"$f":"_xlfn.IFNA(INDEX(tblCards[Prestige],MATCH(tblsCollections[[#This Row],[cP3]],tblCards[ID],0)),0)","v":0},{"$f":"_xlfn.IFNA(INDEX(tblCards[Prestige],MATCH(tblsCollections[[#This Row],[cP4]],tblCards[ID],0)),0)","v":0}]
[{"$nulls":17},{"$f":"INDEX(tblCards[Gem],MATCH(tblsCollections[[#This Row],[cP1]],tblCards[ID],0))","v":{"$error":"#N/A"}},{"$f":"INDEX(tblCards[Gem],MATCH(tblsCollections[[#This Row],[cP2]],tblCards[ID],0))","v":{"$error":"#N/A"}},{"$f":"INDEX(tblCards[Gem],MATCH(tblsCollections[[#This Row],[cP3]],tblCards[ID],0))","v":{"$error":"#N/A"}},{"$f":"INDEX(tblCards[Gem],MATCH(tblsCollections[[#This Row],[cP4]],tblCards[ID],0))","v":{"$error":"#N/A"}},{"$f":"_xlfn.IFNA(INDEX(tblCards[Prestige],MATCH(tblsCollections[[#This Row],[cP1]],tblCards[ID],0)),0)","v":0},{"$f":"_xlfn.IFNA(INDEX(tblCards[Prestige],MATCH(tblsCollections[[#This Row],[cP2]],tblCards[ID],0)),0)","v":0},{"$f":"_xlfn.IFNA(INDEX(tblCards[Prestige],MATCH(tblsCollections[[#This Row],[cP3]],tblCards[ID],0)),0)","v":0},{"$f":"_xlfn.IFNA(INDEX(tblCards[Prestige],MATCH(tblsCollections[[#This Row],[cP4]],tblCards[ID],0)),0)","v":0}]
[{"$nulls":17},{"$f":"INDEX(tblCards[Gem],MATCH(tblsCollections[[#This Row],[cP1]],tblCards[ID],0))","v":{"$error":"#N/A"}},{"$f":"INDEX(tblCards[Gem],MATCH(tblsCollections[[#This Row],[cP2]],tblCards[ID],0))","v":{"$error":"#N/A"}},{"$f":"INDEX(tblCards[Gem],MATCH(tblsCollections[[#This Row],[cP3]],tblCards[ID],0))","v":{"$error":"#N/A"}},{"$f":"INDEX(tblCards[Gem],MATCH(tblsCollections[[#This Row],[cP4]],tblCards[ID],0))","v":{"$error":"#N/A"}},{"$f":"_xlfn.IFNA(INDEX(tblCards[Prestige],MATCH(tblsCollections[[#This Row],[cP1]],tblCards[ID],0)),0)","v":0},{"$f":"_xlfn.IFNA(INDEX(tblCards[Prestige],MATCH(tblsCollections[[#This Row],[cP2]],tblCards[ID],0)),0)","v":0},{"$f":"_xlfn.IFNA(INDEX(tblCards[Prestige],MATCH(tblsCollections[[#This Row],[cP3]],tblCards[ID],0)),0)","v":0},{"$f":"_xlfn.IFNA(INDEX(tblCards[Prestige],MATCH(tblsCollections[[#This Row],[cP4]],tblCards[ID],0)),0)","v":0}]
[{"$nulls":17},{"$f":"INDEX(tblCards[Gem],MATCH(tblsCollections[[#This Row],[cP1]],tblCards[ID],0))","v":{"$error":"#N/A"}},{"$f":"INDEX(tblCards[Gem],MATCH(tblsCollections[[#This Row],[cP2]],tblCards[ID],0))","v":{"$error":"#N/A"}},{"$f":"INDEX(tblCards[Gem],MATCH(tblsCollections[[#This Row],[cP3]],tblCards[ID],0))","v":{"$error":"#N/A"}},{"$f":"INDEX(tblCards[Gem],MATCH(tblsCollections[[#This Row],[cP4]],tblCards[ID],0))","v":{"$error":"#N/A"}},{"$f":"_xlfn.IFNA(INDEX(tblCards[Prestige],MATCH(tblsCollections[[#This Row],[cP1]],tblCards[ID],0)),0)","v":0},{"$f":"_xlfn.IFNA(INDEX(tblCards[Prestige],MATCH(tblsCollections[[#This Row],[cP2]],tblCards[ID],0)),0)","v":0},{"$f":"_xlfn.IFNA(INDEX(tblCards[Prestige],MATCH(tblsCollections[[#This Row],[cP3]],tblCards[ID],0)),0)","v":0},{"$f":"_xlfn.IFNA(INDEX(tblCards[Prestige],MATCH(tblsCollections[[#This Row],[cP4]],tblCards[ID],0)),0)","v":0}]

{"sheet":"Stacks","index":3,"n_rows":51,"n_cols":5,"rows_kept":51}
["Position","P1","P2","P3","P4"]
[1]
[{"$f":"A2+1","v":2}]
[{"$f":"A3+1","v":3}]
[4]
[5]
[6]
[7]
[8]
[9]
[10]
[11]
[12]
[13]
[14]
[15]
[16]
[17]
[18]
[19]
[20]
[21]
[22]
[23]
[24]
[25]
[26]
[27]
[28]
[29]
[30]
[31]
[32]
[33]
[34]
[35]
[36]
[37]
[38]
[39]
[40]
[41]
[42]
[43]
[44]
[45]
[46]
[47]
[48]
[49]
[50]

{"sheet":"Hist","index":4,"n_rows":2,"n_cols":3,"rows_kept":2}
["PlayerID","Action","Detail"]
["P1","Pending"]

{"sheet":"Cards","index":5,"n_rows":93,"n_cols":21,"rows_kept":93}
["ID","Level","Gem","Prestige","pW","pU","pG","pR","pK","G1","P1","G2","P2","G3","P3","G4","P4"]
["0.0",0,0]
["1.1",1,"K","",1,1,1,1,null,"W",1,"U",1,"G",1,"R",1]
["1.2",1,"K","",1,2,1,1,null,"W",1,"U",2,"G",1,"R",1]
["1.3",1,"K","",2,2,null,1,null,"W",2,"U",2,"R",1,"",""]
["1.4",1,"K","",null,null,1,3,1,"G",1,"R",3,"K",1,"",""]
["1.5",1,"K","",null,null,2,1,null,"G",2,"R",1,"","","",""]
["1.6",1,"K","",2,null,2,null,null,"W",2,"G",2,"","","",""]
["1.7",1,"K","",null,null,3,null,null,"G",3,"","","","","",""]
["1.8",1,"K",1,null,4,{"$nulls":3},"U",4,"","","","","",""]
["1.9",1,"U","",1,null,1,1,1,"W",1,"G",1,"R",1,"K",1]
["1.10",1,"U","",1,null,1,2,1,"W",1,"G",1,"R",2,"K",1]
["1.11",1,"U","",1,null,2,2,null,"W",1,"G",2,"R",2,"",""]
["1.12",1,"U","",null,1,3,1,null,"U",1,"G",3,"R",1,"",""]
["1.13",1,"U","",1,{"$nulls":3},2,"W",1,"K",2,"","","",""]
["1.14",1,"U","",null,null,2,null,2,"G",2,"K",2,"","","",""]
["1.15",1,"U","",{"$nulls":4},3,"K",3,"","","","","",""]
["1.16",1,"U",1,{"$nulls":3},4,null,"R",4,"","","","","",""]
["1.17",1,"W","",null,1,1,1,1,"U",1,"G",1,"R",1,"K",1]
["1.18",1,"W","",null,1,2,1,1,"U",1,"G",2,"R",1,"K",1]
["1.19",1,"W","",null,2,2,null,1,"U",2,"G",2,"K",1,"",""]
["1.20",1,"W","",3,1,null,null,1,"W",3,"U",1,"K",1,"",""]
["1.21",1,"W","",{"$nulls":3},2,1,"R",2,"K",1,"","","",""]
["1.22",1,"W","",null,2,null,null,2,"U",2,"K",2,"","","",""]
["1.23",1,"W","",null,3,{"$nulls":3},"U",3,"","","","","",""]
["1.24",1,"W",1,null,null,4,null,null,"G",4,"","","","","",""]
["1.25",1,"G","",1,1,null,1,1,"W",1,"U",1,"R",1,"K",1]
["1.26",1,"G","",1,1,null,1,2,"W",1,"U",1,"R",1,"K",2]
["1.27",1,"G","",null,1,null,2,2,"U",1,"R",2,"K",2,"",""]
["1.28",1,"G","",1,3,1,null,null,"W",1,"U",3,"G",1,"",""]
["1.29",1,"G","",2,1,{"$nulls":3},"W",2,"U",1,"","","",""]
["1.30",1,"G","",null,2,null,2,null,"U",2,"R",2,"","","",""]
["1.31",1,"G","",{"$nulls":3},3,null,"R",3,"","","","","",""]
["1.32",1,"G",1,{"$nulls":4},4,"K",4,"","","","","",""]
["1.33",1,"R","",1,1,1,null,1,"W",1,"U",1,"G",1,"K",1]
["1.34",1,"R","",2,1,1,null,1,"W",2,"U",1,"G",1,"K",1]
["1.35",1,"R","",2,null,1,null,2,"W",2,"G",1,"K",2,"",""]
["1.36",1,"R","",1,null,null,1,3,"W",1,"R",1,"K",3,"",""]
["1.37",1,"R","",null,2,1,null,null,"U",2,"G",1,"","","",""]
["1.38",1,"R","",2,null,null,2,null,"W",2,"R",2,"","","",""]
["1.39",1,"R","",3,{"$nulls":4},"W",3,"","","","","",""]
["1.40",1,"R",1,4,{"$nulls":4},"W",4,"","","","","",""]
["2.1",2,"K",1,3,2,2,null,null,"W",3,"U",2,"G",2,"",""]
["2.2",2,"K",1,3,null,3,null,2,"W",3,"G",3,"K",2,"",""]
["2.3",2,"K",2,null,1,4,2,null,"U",1,"G",4,"R",2,"",""]
["2.4",2,"K",2,null,null,5,3,null,"G",5,"R",3,"","","",""]
["2.5",2,"K",2,5,{"$nulls":4},"W",5,"","","","","",""]
["2.6",2,"K",3,{"$nulls":4},6,"K",6,"","","","","",""]
["2.7",2,"U",1,null,2,2,3,null,"U",2,"G",2,"R",3,"",""]
["2.8",2,"U",1,null,2,3,null,3,"U",2,"G",3,"K",3,"",""]
["2.9",2,"U",2,5,3,{"$nulls":3},"W",5,"U",3,"","","",""]
["2.10",2,"U",2,2,null,null,1,4,"W",2,"R",1,"K",4,"",""]
["2.11",2,"U",2,null,5,{"$nulls":3},"U",5,"","","","","",""]
["2.12",2,"U",3,null,6,{"$nulls":3},"U",6,"","","","","",""]
["2.13",2,"W",1,null,null,3,2,2,"G",3,"R",2,"K",2,"",""]
["2.14",2,"W",1,2,3,null,3,null,"W",2,"U",3,"R",3,"",""]
["2.15",2,"W",2,null,null,1,4,2,"G",1,"R",4,"K",2,"",""]
["2.16",2,"W",2,{"$nulls":3},5,3,"R",5,"K",3,"","","",""]
["2.17",2,"W",2,{"$nulls":3},5,null,"R",5,"","","","","",""]
["2.18",2,"W",3,6,{"$nulls":4},"W",6,"","","","","",""]
["2.19",2,"G",1,3,null,2,3,null,"W",3,"G",2,"R",3,"",""]
["2.20",2,"G",1,2,3,null,null,2,"W",2,"U",3,"K",2,"",""]
["2.21",2,"G",2,4,2,null,null,1,"W",4,"U",2,"K",1,"",""]
["2.22",2,"G",2,null,5,3,null,null,"U",5,"G",3,"","","",""]
["2.23",2,"G",2,null,null,5,null,null,"G",5,"","","","","",""]
["2.24",2,"G",3,null,null,6,null,null,"G",6,"","","","","",""]
["2.25",2,"R",1,2,null,null,2,3,"W",2,"R",2,"K",3,"",""]
["2.26",2,"R",1,null,3,null,2,3,"U",3,"R",2,"K",3,"",""]
["2.27",2,"R",2,1,4,2,null,null,"W",1,"U",4,"G",2,"",""]
["2.28",2,"R",2,3,{"$nulls":3},5,"W",3,"K",5,"","","","",{"$nulls":3},{"$f":"INDEX(tblCards[Prestige],MATCH(\"3.1\",tblCards[ID],0))","v":3}]
["2.29",2,"R",2,{"$nulls":4},5,"K",5,"","","","","",""]
["2.30",2,"R",3,{"$nulls":3},6,null,"R",6,"","","","","",""]
["3.1",3,"K",3,3,3,5,3,null,"W",3,"U",3,"G",5,"R",3]
["3.2",3,"K",4,{"$nulls":3},7,null,"R",7,"","","","","",""]
["3.3",3,"K",4,null,null,3,6,3,"G",3,"R",6,"K",3,"",""]
["3.4",3,"K",5,{"$nulls":3},7,3,"R",7,"K",3,"","","",""]
["3.5",3,"U",3,3,null,3,3,5,"W",3,"G",3,"R",3,"K",5]
["3.6",3,"U",4,7,{"$nulls":4},"W",7,"","","","","",""]
["3.7",3,"U",4,6,3,null,null,3,"W",6,"U",3,"K",3,"",""]
["3.8",3,"U",5,7,3,{"$nulls":3},"W",7,"U",3,"","","",""]
["3.9",3,"W",3,null,3,3,5,3,"U",3,"G",3,"R",5,"K",3]
["3.10",3,"W",4,{"$nulls":4},7,"K",7,"","","","","",""]
["3.11",3,"W",4,3,null,null,3,6,"W",3,"R",3,"K",6,"",""]
["3.12",3,"W",5,3,{"$nulls":3},7,"W",3,"K",7,"","","",""]
["3.13",3,"G",3,5,3,null,3,3,"W",5,"U",3,"R",3,"K",3]
["3.14",3,"G",4,null,7,{"$nulls":3},"U",7,"","","","","",""]
["3.15",3,"G",4,3,6,3,null,null,"W",3,"U",6,"G",3,"",""]
["3.16",3,"G",5,null,7,3,null,null,"U",7,"G",3,"","","",""]
["3.17",3,"R",3,3,5,3,null,3,"W",3,"U",5,"G",3,"K",3]
["3.18",3,"R",4,null,null,7,null,null,"G",7,"","","","","",""]
["3.19",3,"R",4,null,3,6,3,null,"U",3,"G",6,"R",3,"",""]
["3.20",3,"R",5,null,null,7,3,null,"G",7,"R",3,"","","",""]
[""]

{"sheet":"Decks","index":6,"n_rows":41,"n_cols":11,"rows_kept":41}
["Tier3","Rnd","T3Drawn",null,"Tier2","Rnd","T2Drawn",null,"Tier1","Rnd","T1Drawn"]
["3.13",0.014017641544342041,"X",null,"2.9",0.015703916549682617,"X",null,"1.9",0.022629201412200928,"X"]
["3.19",0.0453527569770813,"X",null,"2.24",0.045649170875549316,"X",null,"1.31",0.0807146430015564,"X"]
["3.11",0.056236863136291504,"X",null,"2.5",0.05350452661514282,"X",null,"1.30",0.09797382354736328,"X"]
["3.2",0.289562463760376,"X",null,"2.30",0.10005223751068115,"X",null,"1.34",0.16044151782989502,"X"]
["3.4",0.30194801092147827,null,null,"2.16",0.10302263498306274,null,null,"1.21",0.16282159090042114]
["3.7",0.36401867866516113,null,null,"2.27",0.10636967420578003,null,null,"1.38",0.18601351976394653]
["3.5",0.3735361695289612,null,null,"2.19",0.2268660068511963,null,null,"1.26",0.20756113529205322]
["3.15",0.4140326976776123,null,null,"2.8",0.2439313530921936,null,null,"1.36",0.2613682746887207]
["3.16",0.5334240198135376,null,null,"2.15",0.2637929320335388,null,null,"1.8",0.27827996015548706]
["3.17",0.5795186161994934,null,null,"2.7",0.27934205532073975,null,null,"1.20",0.2896650433540344]
["3.3",0.7055475115776062,null,null,"2.6",0.2844802737236023,null,null,"1.17",0.29577285051345825]
["3.10",0.7090378999710083,null,null,"2.2",0.2981654405593872,null,null,"1.3",0.30097049474716187]
["3.6",0.7607235908508301,null,null,"2.22",0.468700110912323,null,null,"1.28",0.3262062072753906]
["3.14",0.7747400999069214,null,null,"2.25",0.5248684287071228,null,null,"1.23",0.3789025545120239]
["3.18",0.7904800176620483,null,null,"2.28",0.5338730812072754,null,null,"1.11",0.38201069831848145]
["3.20",0.814490020275116,null,null,"2.12",0.5751838088035583,null,null,"1.37",0.40137434005737305]
["3.9",0.8626193404197693,null,null,"2.3",0.5891630053520203,null,null,"1.24",0.4100732207298279]
["3.8",0.8714458346366882,null,null,"2.20",0.5924582481384277,null,null,"1.19",0.41276681423187256]
["3.12",0.9495566487312317,null,null,"2.29",0.6226966977119446,null,null,"1.22",0.4284563660621643]
["3.1",0.9619531631469727,null,null,"2.11",0.6478211879730225,null,null,"1.2",0.43026113510131836]
[{"$nulls":4},"2.17",0.6761758923530579,null,null,"1.35",0.457971453666687]
[{"$nulls":4},"2.4",0.6951155066490173,null,null,"1.1",0.5024539232254028]
[{"$nulls":4},"2.18",0.7671116590499878,null,null,"1.33",0.5433605909347534]
[{"$nulls":4},"2.23",0.798884391784668,null,null,"1.14",0.5610401034355164]
[{"$nulls":4},"2.14",0.8246021270751953,null,null,"1.4",0.5833590030670166]
[{"$nulls":4},"2.21",0.829801619052887,null,null,"1.40",0.627642035484314]
[{"$nulls":4},"2.1",0.91096431016922,null,null,"1.25",0.6317424178123474]
[{"$nulls":4},"2.26",0.9800032377243042,null,null,"1.5",0.6331788897514343]
[{"$nulls":4},"2.13",0.9860931634902954,null,null,"1.10",0.6465871334075928]
[{"$nulls":4},"2.10",0.9994145631790161,null,null,"1.32",0.6779477000236511]
[{"$nulls":8},"1.15",0.6944853067398071]
[{"$nulls":8},"1.39",0.7127304673194885]
[{"$nulls":8},"1.6",0.7852122187614441]
[{"$nulls":8},"1.29",0.8348171710968018]
[{"$nulls":8},"1.18",0.9057298302650452]
[{"$nulls":8},"1.13",0.9137175679206848]
[{"$nulls":8},"1.27",0.916163980960846]
[{"$nulls":8},"1.7",0.9193770885467529]
[{"$nulls":8},"1.12",0.9485710859298706]
[{"$nulls":8},"1.16",0.9798293709754944]

{"sheet":"Gems","index":7,"n_rows":7,"n_cols":9,"rows_kept":7}
["ID","Index","Name","ColorVal","ColorImage","RGB","Hex","FancyName","FancyPlural"]
["W",1,"White",16777215,null,"255-255-255","FFFFFF","Diamond","Diamonds"]
["U",2,"Blue",13145088,null,"0-148-200","C89400","Sapphire","Sapphires"]
["G",3,"Green",2926188,null,"108-166-44","2CA66C","Emerald","Emeralds"]
["R",4,"Red",204,null,"204-0-0","0000CC","Ruby","Rubies"]
["K",5,"Black",267566,null,"46-21-4","04152E","Onyx","Onyxes"]
["J",6,"Wild",65535,null,"255-255-0","FFFF00","Gold","Golds"]

{"sheet":"Nobles","index":8,"n_rows":12,"n_cols":14,"rows_kept":12}
["ID","Name","Prestige","cW","cU","cG","cR","cK","C1","A1","C2","A2","C3","A3"]
[1,"Catherine",3,null,3,3,3,null,"U",3,"G",3,"R",3]
[2,"Elisabeth",3,3,3,null,null,3,"W",3,"U",3,"K",3]
[3,"Isabella",3,4,{"$nulls":3},4,"W",4,"K",4,{"$f":"\"\"","v":""},{"$f":"\"\"","v":""}]
[4,"Machiavelli",3,4,4,{"$nulls":3},"W",4,"U",4,{"$f":"\"\"","v":""},{"$f":"\"\"","v":""}]
[5,"Suleiman",3,null,4,4,null,null,"U",4,"G",4,{"$f":"\"\"","v":""},{"$f":"\"\"","v":""}]
[6,"Anne",3,3,3,3,null,null,"W",3,"U",3,"G",3]
[7,"Charles",3,3,null,null,3,3,"W",3,"R",3,"K",3]
[8,"Francis",3,null,null,3,3,3,"G",3,"R",3,"K",3]
[9,"Henry",3,{"$nulls":3},4,4,"R",4,"K",4,{"$f":"\"\"","v":""},{"$f":"\"\"","v":""}]
[10,"Mary",3,null,null,4,4,null,"G",4,"R",4,{"$f":"\"\"","v":""},{"$f":"\"\"","v":""}]
[0]

{"sheet":"Notes","index":9,"n_rows":5,"n_cols":2,"rows_kept":5}
[]
[null,"RGB"]
["Background Color",{"v":243233225,"d":"243,233,225"}]
["Noble background","89,89,89"]
["Card background",{"v":117113113,"d":"117,113,113"}]

{"sheet":"Todo","index":10,"n_rows":16,"n_cols":2,"rows_kept":16}
[null,"Todo List"]
{"$rows_empty":10}
[null,"Create code to ally with a noble."]
[null,"Create an interface to select which noble to ally with if there are multiple options."]
[null,"Create a check to see if the game has ended and an end-game message."]
[null,"Allocate real estate to Player 2"]
[null,"Write code to switch players"]